Publisher Label,Publisher URI,"Supplier","Net Amount (£)","Organisational Unit","Merchant Category Code","Purpose","Payment Date"
"Wolverhampton City Council","http://opendatacommunities.org/id/metropolitan-district-council/wolverhampton","Amazon UK Marketplace","24.97","Headstart - Learning Technologies Team","5942","Books","31/08/2017"
"Wolverhampton City Council","http://opendatacommunities.org/id/metropolitan-district-council/wolverhampton","Amazon UK Marketplace","6.99","Headstart - Learning Technologies Team","5942","Books","31/08/2017"
"Wolverhampton City Council","http://opendatacommunities.org/id/metropolitan-district-council/wolverhampton","Amazon UK Marketplace","17.69","Headstart - Learning Technologies Team","5942","Books","31/08/2017"
"Wolverhampton City Council","http://opendatacommunities.org/id/metropolitan-district-council/wolverhampton","WOLVERHAMPTON CC","5.50","GEN Y City Transnational","7523","Car Allowances","31/08/2017"
"Wolverhampton City Council","http://opendatacommunities.org/id/metropolitan-district-council/wolverhampton","WOLVERHAMPTON CC","12.50","IMPACT","7523","Car Allowances","31/08/2017"
"Wolverhampton City Council","http://opendatacommunities.org/id/metropolitan-district-council/wolverhampton","WEST MID TRAVEL","436.85","IMPACT","4131","Public Transport","31/08/2017"
"Wolverhampton City Council","http://opendatacommunities.org/id/metropolitan-district-council/wolverhampton","TESCO DIRECT","124.17","LAC Transitions Team","5999","Client Allowances","31/08/2017"
"Wolverhampton City Council","http://opendatacommunities.org/id/metropolitan-district-council/wolverhampton","WWW.SONDICOPROF.CO.UK","170.99","LAC Transitions Team","5941","Client Allowances","31/08/2017"
"Wolverhampton City Council","http://opendatacommunities.org/id/metropolitan-district-council/wolverhampton","UNTOUCHABLES","12.50","Cemeteries","5231","Materials","31/08/2017"
"Wolverhampton City Council","http://opendatacommunities.org/id/metropolitan-district-council/wolverhampton","SCREWFIX WOLVERHAM","16.09","Public Conveniences","5211","R&M - Departmental planned (external)","31/08/2017"
"Wolverhampton City Council","http://opendatacommunities.org/id/metropolitan-district-council/wolverhampton","HUGHES","131.67","LAC Transitions Team","5732","Client Allowances","31/08/2017"
"Wolverhampton City Council","http://opendatacommunities.org/id/metropolitan-district-council/wolverhampton","CUMMINGS BROTHERS LOCK","7.92","Hickman Avenue Depot","7399","R&M - Departmental planned (external)","31/08/2017"
"Wolverhampton City Council","http://opendatacommunities.org/id/metropolitan-district-council/wolverhampton","Trainline","172.63","CIN/CP Social Work Unit - Area 7","4112","Public Transport","31/08/2017"
"Wolverhampton City Council","http://opendatacommunities.org/id/metropolitan-district-council/wolverhampton","Amazon UK Marketplace","6.79","Global Budgets","5942","Books","31/08/2017"
"Wolverhampton City Council","http://opendatacommunities.org/id/metropolitan-district-council/wolverhampton","Amazon UK Marketplace","10.80","Global Budgets","5942","Books","31/08/2017"
"Wolverhampton City Council","http://opendatacommunities.org/id/metropolitan-district-council/wolverhampton","EAST & WEST AID","162.50","EIP Locality 3","8398","Grant Payments","31/08/2017"
"Wolverhampton City Council","http://opendatacommunities.org/id/metropolitan-district-council/wolverhampton","DUNELM (SOFT FURNISHIN","37.50","Bradley Resource Centre","5714","Equipment - R & M","31/08/2017"
"Wolverhampton City Council","http://opendatacommunities.org/id/metropolitan-district-council/wolverhampton","CAMPUSLIVINGVILLAG","253.30","LAC Transitions Team","7011","Accommodation Costs","31/08/2017"
"Wolverhampton City Council","http://opendatacommunities.org/id/metropolitan-district-council/wolverhampton","W M MORRISON PLC","8.79","Ernest Bold Court","5411","Provisions (Not for resale)","31/08/2017"
"Wolverhampton City Council","http://opendatacommunities.org/id/metropolitan-district-council/wolverhampton","ASDA GEORGE COM LEEDS","17.46","CIN/CP Social Work Unit - Area 5","5411","Section 17","31/08/2017"
"Wolverhampton City Council","http://opendatacommunities.org/id/metropolitan-district-council/wolverhampton","WWW.REDSPOTTEDHANK","58.90","CIN/CP Social Work Unit - Area 5","4112","Section 17","31/08/2017"
"Wolverhampton City Council","http://opendatacommunities.org/id/metropolitan-district-council/wolverhampton","EE & T-MOBILE","201.31","Civic Halls Non Direct Management A/C","4814","Comms - Telephone Call charges","31/08/2017"
"Wolverhampton City Council","http://opendatacommunities.org/id/metropolitan-district-council/wolverhampton","MAJESTIC WINE WARE","-429.63","Civic Centre Catering","5921","Equipment - Purchase","31/08/2017"
"Wolverhampton City Council","http://opendatacommunities.org/id/metropolitan-district-council/wolverhampton","THE BIKEABILITY TRUST","836.63","Cycling Schemes - Bikeability","5111","Equipment - Purchase","31/08/2017"
"Wolverhampton City Council","http://opendatacommunities.org/id/metropolitan-district-council/wolverhampton","GRO HM PASSPORT OFFICE","18.50","LAC Transitions Team","9399","Client Allowances","31/08/2017"
"Wolverhampton City Council","http://opendatacommunities.org/id/metropolitan-district-council/wolverhampton","ARGOS RETAIL GROUP","34.99","EIP Locality 8","5310","Grant Payments","31/08/2017"
"Wolverhampton City Council","http://opendatacommunities.org/id/metropolitan-district-council/wolverhampton","HIGHFIELD HOUSE HO","385.00","CIN/CP Social Work Unit - Area 3","7011","Services - Supplies & Services to users","31/08/2017"
"Wolverhampton City Council","http://opendatacommunities.org/id/metropolitan-district-council/wolverhampton","ARGOS RETAIL GROUP","105.96","Creative Studies Delivery Area","5310","Equipment - Purchase","30/08/2017"
"Wolverhampton City Council","http://opendatacommunities.org/id/metropolitan-district-council/wolverhampton","CARVER/WOLVERHAMPTON/L","96.01","Culwell Street Depot","5211","Materials","30/08/2017"
"Wolverhampton City Council","http://opendatacommunities.org/id/metropolitan-district-council/wolverhampton","WWW.WMCA.CO.UK","297.00","CIN/CP Social Work Unit - Area 5","9399","No Recourse to Public Funds","30/08/2017"
"Wolverhampton City Council","http://opendatacommunities.org/id/metropolitan-district-council/wolverhampton","AMAZON UK PRIME AMZN.C","7.99","Global Budgets","5968","Subscriptions","30/08/2017"
"Wolverhampton City Council","http://opendatacommunities.org/id/metropolitan-district-council/wolverhampton","ARGOS LTD","195.98","LAC Transitions Team","5310","Equipment - Purchase","30/08/2017"
"Wolverhampton City Council","http://opendatacommunities.org/id/metropolitan-district-council/wolverhampton","Amazon EU","49.99","Parking Enforcement","5969","Equipment - Purchase","30/08/2017"
"Wolverhampton City Council","http://opendatacommunities.org/id/metropolitan-district-council/wolverhampton","AMAZON.CO.UK","66.62","Future Space Decant Area","5942","Equipment - Purchase","30/08/2017"
"Wolverhampton City Council","http://opendatacommunities.org/id/metropolitan-district-council/wolverhampton","Amazon UK Marketplace","62.50","Licensing - General","5942","Equipment - Purchase","30/08/2017"
"Wolverhampton City Council","http://opendatacommunities.org/id/metropolitan-district-council/wolverhampton","CURRYS ONLINE","64.99","Headstart - Learning Technologies Team","5732","Equipment - Purchase","30/08/2017"
"Wolverhampton City Council","http://opendatacommunities.org/id/metropolitan-district-council/wolverhampton","Amazon UK Marketplace","11.28","Headstart - Learning Technologies Team","5942","Books","30/08/2017"
"Wolverhampton City Council","http://opendatacommunities.org/id/metropolitan-district-council/wolverhampton","FACEBK ERHSRD2AR2","21.11","Communications & Marketing - General","7311","Marketing \ Non-staff advertising","30/08/2017"
"Wolverhampton City Council","http://opendatacommunities.org/id/metropolitan-district-council/wolverhampton","FACEBK DRHSRD2AR2","479.02","Communications & Marketing - General","7311","Marketing \ Non-staff advertising","30/08/2017"
"Wolverhampton City Council","http://opendatacommunities.org/id/metropolitan-district-council/wolverhampton","WWW.WMCA.CO.UK","32.10","IMPACT","9399","Services - Fees and Charges","30/08/2017"
"Wolverhampton City Council","http://opendatacommunities.org/id/metropolitan-district-council/wolverhampton","WEST MID TRAVEL","241.70","Youth Offending Team","4131","Public Transport","30/08/2017"
"Wolverhampton City Council","http://opendatacommunities.org/id/metropolitan-district-council/wolverhampton","AMFBOWLING.CO.UK","22.30","CIN/CP Social Work Unit - Area 3","7997","Educ Trips, Holidays, Outings, Activity","30/08/2017"
"Wolverhampton City Council","http://opendatacommunities.org/id/metropolitan-district-council/wolverhampton","E01510300000000","160.00","Emergency Duty Team","6011","Financial Assistance In Exceptional Circ","30/08/2017"
"Wolverhampton City Council","http://opendatacommunities.org/id/metropolitan-district-council/wolverhampton","ASDA STORES 4452","71.99","Upper Pendeford Farm Childrens Home","5411","Provisions (Not for resale)","30/08/2017"
"Wolverhampton City Council","http://opendatacommunities.org/id/metropolitan-district-council/wolverhampton","ITUNES.COM/BILL","0.79","Strategic ICTS (ICT Serv Budget)","5735","Computing - Purchase of Software","29/08/2017"
"Wolverhampton City Council","http://opendatacommunities.org/id/metropolitan-district-council/wolverhampton","NATWEST BANK","20.00","Ernest Bold Court","6011","Services - Supplies & Services to users","29/08/2017"
"Wolverhampton City Council","http://opendatacommunities.org/id/metropolitan-district-council/wolverhampton","ASDA HOME SHOPPING","83.07","Ernest Bold Court","5411","Provisions (Not for resale)","29/08/2017"
"Wolverhampton City Council","http://opendatacommunities.org/id/metropolitan-district-council/wolverhampton","EBUYER (UK) LTD","28.28","Central Costs","5722","Equipment - Purchase","28/08/2017"
"Wolverhampton City Council","http://opendatacommunities.org/id/metropolitan-district-council/wolverhampton","S & B WASTE","169.50","Central Costs","4900","Grounds Maintenance - Non Contract","28/08/2017"
"Wolverhampton City Council","http://opendatacommunities.org/id/metropolitan-district-council/wolverhampton","Amazon UK Marketplace","18.30","Global Budgets","5942","Equipment - Purchase","28/08/2017"
"Wolverhampton City Council","http://opendatacommunities.org/id/metropolitan-district-council/wolverhampton","AMAZON.CO.UK","47.85","Global Budgets","5942","Books","28/08/2017"
"Wolverhampton City Council","http://opendatacommunities.org/id/metropolitan-district-council/wolverhampton","PP THEWAY YZ","40.00","LAC Team","8398","Financial Assistance In Exceptional Circ","28/08/2017"
"Wolverhampton City Council","http://opendatacommunities.org/id/metropolitan-district-council/wolverhampton","ASDA HOME SHOPPING","86.82","Ernest Bold Court","5411","Provisions (Not for resale)","28/08/2017"
"Wolverhampton City Council","http://opendatacommunities.org/id/metropolitan-district-council/wolverhampton","FACEBK PC2KBDA982","3.62","Civic Halls Non Direct Management A/C","7311","Marketing \ Non-staff advertising","28/08/2017"
"Wolverhampton City Council","http://opendatacommunities.org/id/metropolitan-district-council/wolverhampton","FACEBK NC2KBDA982","36.57","Audience Development","7311","Marketing \ Non-staff advertising","28/08/2017"
"Wolverhampton City Council","http://opendatacommunities.org/id/metropolitan-district-council/wolverhampton","Trainline","111.69","CIN/CP Social Work Unit - Area 8","4112","Section 17","28/08/2017"
"Wolverhampton City Council","http://opendatacommunities.org/id/metropolitan-district-council/wolverhampton","Trainline","22.19","CIN/CP Social Work Unit - Area 8","4112","Section 17","28/08/2017"
"Wolverhampton City Council","http://opendatacommunities.org/id/metropolitan-district-council/wolverhampton","EXPEDIA 7290731029173","301.32","CIN/CP Social Work Unit - Area 3","4722","Accommodation Costs","28/08/2017"
"Wolverhampton City Council","http://opendatacommunities.org/id/metropolitan-district-council/wolverhampton","FACEBK VXBJGCJ982","1.43","Audience Development","7311","Marketing \ Non-staff advertising","28/08/2017"
"Wolverhampton City Council","http://opendatacommunities.org/id/metropolitan-district-council/wolverhampton","FACEBK UXBJGCJ982","18.68","Audience Development","7311","Marketing \ Non-staff advertising","28/08/2017"
"Wolverhampton City Council","http://opendatacommunities.org/id/metropolitan-district-council/wolverhampton","JOLLY ROGER LTD","1049.00","Education And Access","5945","Materials","28/08/2017"
"Wolverhampton City Council","http://opendatacommunities.org/id/metropolitan-district-council/wolverhampton","Trainline","52.53","CIN/CP Social Work Unit - Area 8","4112","Section 17","28/08/2017"
"Wolverhampton City Council","http://opendatacommunities.org/id/metropolitan-district-council/wolverhampton","HARVEYS AUTOS LTD","416.67","Fostering Team & Allowances","5511","Vehicle Maintenance - Repairs","28/08/2017"
"Wolverhampton City Council","http://opendatacommunities.org/id/metropolitan-district-council/wolverhampton","WWW.CORAM.ORG.UK","317.29","Fostering Team & Allowances","8398","Services - Supplies & Services to users","28/08/2017"
"Wolverhampton City Council","http://opendatacommunities.org/id/metropolitan-district-council/wolverhampton","BACKCARE SOLUTIONS LTD","610.00","Fostering Team & Allowances","5047","Services - Professional Fees","28/08/2017"
"Wolverhampton City Council","http://opendatacommunities.org/id/metropolitan-district-council/wolverhampton","WLY MYTIMEREWARDSWL.UK","10.00","Headstart - Learning Technologies Team","5968","Subscriptions","28/08/2017"
"Wolverhampton City Council","http://opendatacommunities.org/id/metropolitan-district-council/wolverhampton","WWW.BANDFORHIRE.NET","510.00","Communications & Marketing - General","7929","Educ Trips, Holidays, Outings, Activity","28/08/2017"
"Wolverhampton City Council","http://opendatacommunities.org/id/metropolitan-district-council/wolverhampton","Amazon UK Marketplace","16.21","Communications & Marketing - General","5942","Books","28/08/2017"
"Wolverhampton City Council","http://opendatacommunities.org/id/metropolitan-district-council/wolverhampton","WWW.PRIMARYTEACHING.CO","91.20","Headstart Phase 3","5943","Stationery","28/08/2017"
"Wolverhampton City Council","http://opendatacommunities.org/id/metropolitan-district-council/wolverhampton","BARCLAYS BANK PLC","200.00","Headstart - Young People Engagement","6011","Financial Assistance In Exceptional Circ","28/08/2017"
"Wolverhampton City Council","http://opendatacommunities.org/id/metropolitan-district-council/wolverhampton","POST OFFICE COUNTER","3.67","Cemeteries","9402","Comms - Postage","28/08/2017"
"Wolverhampton City Council","http://opendatacommunities.org/id/metropolitan-district-council/wolverhampton","REGISTRARS OFFICE","10.00","Adoption and Residence Team & Allowances","8299","Services - Fees and Charges","28/08/2017"
"Wolverhampton City Council","http://opendatacommunities.org/id/metropolitan-district-council/wolverhampton","Trainline","210.22","Intensive Family Support Team","4112","Public Transport","28/08/2017"
"Wolverhampton City Council","http://opendatacommunities.org/id/metropolitan-district-council/wolverhampton","ASDA HOME SHOPPING","2.50","Upper Pendeford Farm Childrens Home","5411","Provisions (Not for resale)","28/08/2017"
"Wolverhampton City Council","http://opendatacommunities.org/id/metropolitan-district-council/wolverhampton","ROYAL CARPETS","180.00","LAC Transitions Team","5713","Equipment - Purchase","25/08/2017"
"Wolverhampton City Council","http://opendatacommunities.org/id/metropolitan-district-council/wolverhampton","CURRYS S/S","11.66","Shopmobility","5732","Cleaning Supplies and Materials","25/08/2017"
"Wolverhampton City Council","http://opendatacommunities.org/id/metropolitan-district-council/wolverhampton","WWW.CILEX LAW SC.AC.UK","50.00","Central Training","8244","Training Expenses","25/08/2017"
"Wolverhampton City Council","http://opendatacommunities.org/id/metropolitan-district-council/wolverhampton","WWW.CILEX LAW SC.AC.UK","50.00","Central Training","8244","Training Expenses","25/08/2017"
"Wolverhampton City Council","http://opendatacommunities.org/id/metropolitan-district-council/wolverhampton","WWW.UKTOOLBOX.COM","21.29","School Crossing Patrol","5251","Equipment - Purchase","25/08/2017"
"Wolverhampton City Council","http://opendatacommunities.org/id/metropolitan-district-council/wolverhampton","REDWINGS LODGE","189.80","CIN/CP Social Work Unit - Area 1","7011","Section 17","25/08/2017"
"Wolverhampton City Council","http://opendatacommunities.org/id/metropolitan-district-council/wolverhampton","REDWINGS LODGE","47.92","CIN/CP Social Work Unit - Area 1","7011","Section 17","25/08/2017"
"Wolverhampton City Council","http://opendatacommunities.org/id/metropolitan-district-council/wolverhampton","000002200500000","250.00","CIN/CP Social Work Unit - Area 6","6011","Financial Assistance In Exceptional Circ","25/08/2017"
"Wolverhampton City Council","http://opendatacommunities.org/id/metropolitan-district-council/wolverhampton","AMAZON UK RETAIL AMAZO","58.33","EIP Locality 8","5999","Grant Payments","25/08/2017"
"Wolverhampton City Council","http://opendatacommunities.org/id/metropolitan-district-council/wolverhampton","Amazon UK Marketplace","42.40","EIP Locality 7","5942","Materials","25/08/2017"
"Wolverhampton City Council","http://opendatacommunities.org/id/metropolitan-district-council/wolverhampton","Amazon UK Marketplace","109.00","EIP Locality 8","5942","Grant Payments","25/08/2017"
"Wolverhampton City Council","http://opendatacommunities.org/id/metropolitan-district-council/wolverhampton","NCE COMPUTER GROUP","78.60","Customer Services","7372","Computing - Purchase of Software","25/08/2017"
"Wolverhampton City Council","http://opendatacommunities.org/id/metropolitan-district-council/wolverhampton","WWW.ARGOS.CO.UK","106.94","EIP Locality 5","5310","Grant Payments","25/08/2017"
"Wolverhampton City Council","http://opendatacommunities.org/id/metropolitan-district-council/wolverhampton","WWW.ARGOS.CO.UK","179.99","EIP Locality 5","5310","Grant Payments","25/08/2017"
"Wolverhampton City Council","http://opendatacommunities.org/id/metropolitan-district-council/wolverhampton","WWW.ARGOS.CO.UK","119.99","EIP Locality 5","5310","Grant Payments","25/08/2017"
"Wolverhampton City Council","http://opendatacommunities.org/id/metropolitan-district-council/wolverhampton","WM MORRISONS","12.76","CIN/CP Social Work Unit - Area 5","5411","Provisions (Not for resale)","25/08/2017"
"Wolverhampton City Council","http://opendatacommunities.org/id/metropolitan-district-council/wolverhampton","Amazon UK Marketplace","5.22","Global Budgets","5942","Books","25/08/2017"
"Wolverhampton City Council","http://opendatacommunities.org/id/metropolitan-district-council/wolverhampton","Amazon UK Marketplace","3.27","Global Budgets","5942","Books","25/08/2017"
"Wolverhampton City Council","http://opendatacommunities.org/id/metropolitan-district-council/wolverhampton","Amazon UK Marketplace","19.32","Head of Service - CINCP","5942","Books","25/08/2017"
"Wolverhampton City Council","http://opendatacommunities.org/id/metropolitan-district-council/wolverhampton","ASDA SUPERSTORE","25.00","CIN/CP Social Work Unit - Area 5","5411","Section 17","25/08/2017"
"Wolverhampton City Council","http://opendatacommunities.org/id/metropolitan-district-council/wolverhampton","ASDA SUPERSTORE","74.00","CIN/CP Social Work Unit - Area 5","5411","Section 17","25/08/2017"
"Wolverhampton City Council","http://opendatacommunities.org/id/metropolitan-district-council/wolverhampton","ASDA SUPERSTORE","179.92","LAC Transitions Team","5411","Provisions (Not for resale)","25/08/2017"
"Wolverhampton City Council","http://opendatacommunities.org/id/metropolitan-district-council/wolverhampton","ASDA SUPERSTORE","188.40","LAC Transitions Team","5411","Provisions (Not for resale)","25/08/2017"
"Wolverhampton City Council","http://opendatacommunities.org/id/metropolitan-district-council/wolverhampton","CT WOLVERHAMPTON","280.00","LAC Transitions Team","8398","Services - Supplies & Services to users","25/08/2017"
"Wolverhampton City Council","http://opendatacommunities.org/id/metropolitan-district-council/wolverhampton","PAYPAL  WTONBIZFOR","13.00","Communications & Marketing - General","8398","Services - Supplies & Services to users","25/08/2017"
"Wolverhampton City Council","http://opendatacommunities.org/id/metropolitan-district-council/wolverhampton","Amazon EU","119.00","Strategic ICTS (ICT Serv Budget)","5969","Equipment - Purchase","25/08/2017"
"Wolverhampton City Council","http://opendatacommunities.org/id/metropolitan-district-council/wolverhampton","CUMMINGS BROTHERS LOCK","31.20","Caretakers Community Centre","7399","Equipment - Purchase","25/08/2017"
"Wolverhampton City Council","http://opendatacommunities.org/id/metropolitan-district-council/wolverhampton","LIDDELL ELECTRICAL DIS","32.40","Caretakers Community Centre","5065","Equipment - R & M","25/08/2017"
"Wolverhampton City Council","http://opendatacommunities.org/id/metropolitan-district-council/wolverhampton","PURE360","224.00","Audience Development","7372","Marketing \ Non-staff advertising","24/08/2017"
"Wolverhampton City Council","http://opendatacommunities.org/id/metropolitan-district-council/wolverhampton","WWW.WMCA.CO.UK","99.00","CIN/CP Social Work Unit - Area 4","9399","Services - Fees and Charges","24/08/2017"
"Wolverhampton City Council","http://opendatacommunities.org/id/metropolitan-district-council/wolverhampton","REDWINGS LODGE","129.90","CIN/CP Social Work Unit - Area 1","7011","Section 17","24/08/2017"
"Wolverhampton City Council","http://opendatacommunities.org/id/metropolitan-district-council/wolverhampton","Virgin Trains","90.00","CIN/CP Social Work Unit - Area 2","4112","Section 17","24/08/2017"
"Wolverhampton City Council","http://opendatacommunities.org/id/metropolitan-district-council/wolverhampton","NATIONWIDE HIRE 4 U LT","297.33","CIN/CP Social Work Unit - Area 7","7512","Section 17","24/08/2017"
"Wolverhampton City Council","http://opendatacommunities.org/id/metropolitan-district-council/wolverhampton","Amazon UK Marketplace","4.99","Parks - Ranger Service","5942","Equipment - Purchase","24/08/2017"
"Wolverhampton City Council","http://opendatacommunities.org/id/metropolitan-district-council/wolverhampton","GOOGLE  ADWS9680351324","200.00","Communications & Marketing - General","5968","Subscriptions","24/08/2017"
"Wolverhampton City Council","http://opendatacommunities.org/id/metropolitan-district-council/wolverhampton","WWW.ARGOS.CO.UK","23.94","LAC Transitions Team","5310","Client Allowances","24/08/2017"
"Wolverhampton City Council","http://opendatacommunities.org/id/metropolitan-district-council/wolverhampton","Amazon UK Marketplace","51.46","Strategic ICTS (ICT Serv Budget)","5942","Computing - Purchase of Hardware","24/08/2017"
"Wolverhampton City Council","http://opendatacommunities.org/id/metropolitan-district-council/wolverhampton","TVLICENSING.CO.UK","147.00","Caretakers Community Centre","7392","Services - Consultants","24/08/2017"
"Wolverhampton City Council","http://opendatacommunities.org/id/metropolitan-district-council/wolverhampton","ASDA HOME SHOPPING","168.12","Upper Pendeford Farm Childrens Home","5411","Provisions (Not for resale)","24/08/2017"
"Wolverhampton City Council","http://opendatacommunities.org/id/metropolitan-district-council/wolverhampton","ASDA HOME SHOPPING","1.38","Upper Pendeford Farm Childrens Home","5411","Provisions (Not for resale)","24/08/2017"
"Wolverhampton City Council","http://opendatacommunities.org/id/metropolitan-district-council/wolverhampton","CUMMINGS BROTHERS LOCK","60.00","Central Costs","7399","Equipment - Purchase","24/08/2017"
"Wolverhampton City Council","http://opendatacommunities.org/id/metropolitan-district-council/wolverhampton","WILKO RETAIL LIMIT","21.50","Service Wide","5722","Equipment - Purchase","24/08/2017"
"Wolverhampton City Council","http://opendatacommunities.org/id/metropolitan-district-council/wolverhampton","POUNDLAND LTD 1463","25.00","Service Wide","5310","Equipment - Purchase","24/08/2017"
"Wolverhampton City Council","http://opendatacommunities.org/id/metropolitan-district-council/wolverhampton","WICKES","33.57","Culwell Street Depot","5211","R&M - Departmental planned (external)","24/08/2017"
"Wolverhampton City Council","http://opendatacommunities.org/id/metropolitan-district-council/wolverhampton","E00783400000000","20.00","EIP Locality 1","6011","Provisions (Not for resale)","24/08/2017"
"Wolverhampton City Council","http://opendatacommunities.org/id/metropolitan-district-council/wolverhampton","IMPERIAL WAR MUSEUM","139.50","Pop Gallery Space","7991","Services - Professional Fees","24/08/2017"
"Wolverhampton City Council","http://opendatacommunities.org/id/metropolitan-district-council/wolverhampton","ROYAL DUTCH AIRLINES (KLM)","29.70","GEN Y City Transnational","3010","Public Transport","24/08/2017"
"Wolverhampton City Council","http://opendatacommunities.org/id/metropolitan-district-council/wolverhampton","ROYAL DUTCH AIRLINES (KLM)","166.96","GEN Y City Transnational","3010","Public Transport","24/08/2017"
"Wolverhampton City Council","http://opendatacommunities.org/id/metropolitan-district-council/wolverhampton","IKEA LIMITED","48.33","Education And Access","5712","Equipment - Purchase","24/08/2017"
"Wolverhampton City Council","http://opendatacommunities.org/id/metropolitan-district-council/wolverhampton","BARCLAYS BANK PLC","240.00","CIN/CP Social Work Unit - Area 6","6011","Financial Assistance In Exceptional Circ","24/08/2017"
"Wolverhampton City Council","http://opendatacommunities.org/id/metropolitan-district-council/wolverhampton","DUDLEY MBC  INTERN","15.69","LAC Transitions Team","8999","Client Allowances","24/08/2017"
"Wolverhampton City Council","http://opendatacommunities.org/id/metropolitan-district-council/wolverhampton","WWW.OAKFURNITURELA","164.82","Future Space Decant Area","5712","Equipment - Purchase","24/08/2017"
"Wolverhampton City Council","http://opendatacommunities.org/id/metropolitan-district-council/wolverhampton","Virgin Trains","153.20","Members Expenses","4112","Public Transport","24/08/2017"
"Wolverhampton City Council","http://opendatacommunities.org/id/metropolitan-district-council/wolverhampton","COPPERFIELD WINDOWS","25.83","Education And Access","5231","Materials","24/08/2017"
"Wolverhampton City Council","http://opendatacommunities.org/id/metropolitan-district-council/wolverhampton","Amazon UK Marketplace","29.57","Blakenhall Commty & Healthy Living Ctr","5942","Fixtures and Fittings - Purchases","24/08/2017"
"Wolverhampton City Council","http://opendatacommunities.org/id/metropolitan-district-council/wolverhampton","ASDA SUPERSTORE","61.28","LAC Team","5411","Financial Assistance In Exceptional Circ","24/08/2017"
"Wolverhampton City Council","http://opendatacommunities.org/id/metropolitan-district-council/wolverhampton","SAINSBURYS SACAT (2340","17.05","LAC Team","5411","Financial Assistance In Exceptional Circ","24/08/2017"
"Wolverhampton City Council","http://opendatacommunities.org/id/metropolitan-district-council/wolverhampton","PREMIER SPORTS (WOLVER","12.50","LAC Team","5941","Financial Assistance In Exceptional Circ","24/08/2017"
"Wolverhampton City Council","http://opendatacommunities.org/id/metropolitan-district-council/wolverhampton","POST OFFICE COUNTER","186.00","Safeguarding Admin Resource","9402","Comms - Postage","24/08/2017"
"Wolverhampton City Council","http://opendatacommunities.org/id/metropolitan-district-council/wolverhampton","AMAZON UK RETAIL AMAZO","55.98","Strategic ICTS (ICT Serv Budget)","5999","Equipment - Purchase","23/08/2017"
"Wolverhampton City Council","http://opendatacommunities.org/id/metropolitan-district-council/wolverhampton","HEADSETS4BUSINESS","144.00","Strategic ICTS (ICT Serv Budget)","4812","Computing - Purchase of Hardware","23/08/2017"
"Wolverhampton City Council","http://opendatacommunities.org/id/metropolitan-district-council/wolverhampton","Amazon UK Marketplace","43.29","Strategic ICTS (ICT Serv Budget)","5942","Computing - Purchase of Hardware","23/08/2017"
"Wolverhampton City Council","http://opendatacommunities.org/id/metropolitan-district-council/wolverhampton","Trainline","20.65","Strategic ICTS (ICT Serv Budget)","4112","Public Transport","23/08/2017"
"Wolverhampton City Council","http://opendatacommunities.org/id/metropolitan-district-council/wolverhampton","SEVERN TRENT WATER","49.62","CIN/CP Social Work Unit - Area 3","4900","No Recourse to Public Funds","23/08/2017"
"Wolverhampton City Council","http://opendatacommunities.org/id/metropolitan-district-council/wolverhampton","NPOWER","237.81","CIN/CP Social Work Unit - Area 3","4900","No Recourse to Public Funds","23/08/2017"
"Wolverhampton City Council","http://opendatacommunities.org/id/metropolitan-district-council/wolverhampton","MARRIOTT","102.00","LAC Team","3509","Services - Supplies & Services to users","23/08/2017"
"Wolverhampton City Council","http://opendatacommunities.org/id/metropolitan-district-council/wolverhampton","WWW.LEWIS-PLAST.CO.UK","-21.95","EIP Locality 5","5047","Equipment - Purchase","23/08/2017"
"Wolverhampton City Council","http://opendatacommunities.org/id/metropolitan-district-council/wolverhampton","B&M RETAIL","7.03","EIP Locality 5","5310","Provisions (Not for resale)","23/08/2017"
"Wolverhampton City Council","http://opendatacommunities.org/id/metropolitan-district-council/wolverhampton","B&M RETAIL","55.94","EIP Locality 5","5310","Grant Payments","23/08/2017"
"Wolverhampton City Council","http://opendatacommunities.org/id/metropolitan-district-council/wolverhampton","WWW.LEWIS-PLAST.CO.UK","31.95","EIP Locality 5","5047","Equipment - Purchase","23/08/2017"
"Wolverhampton City Council","http://opendatacommunities.org/id/metropolitan-district-council/wolverhampton","WILKO RETAIL LIMIT","29.15","Central Costs","5722","Equipment - Purchase","23/08/2017"
"Wolverhampton City Council","http://opendatacommunities.org/id/metropolitan-district-council/wolverhampton","Trainline","79.25","Archives","4112","Public Transport","23/08/2017"
"Wolverhampton City Council","http://opendatacommunities.org/id/metropolitan-district-council/wolverhampton","REGISTRARS OFFICE","30.00","MASH","8299","Training Expenses","23/08/2017"
"Wolverhampton City Council","http://opendatacommunities.org/id/metropolitan-district-council/wolverhampton","REGISTRARS OFFICE","40.00","CIN/CP Social Work Unit - Area 1","8299","Section 17","23/08/2017"
"Wolverhampton City Council","http://opendatacommunities.org/id/metropolitan-district-council/wolverhampton","NATIONWIDE HIRE 4 U LT","416.67","CIN/CP Social Work Unit - Area 7","7512","Section 17","23/08/2017"
"Wolverhampton City Council","http://opendatacommunities.org/id/metropolitan-district-council/wolverhampton","HOLIDAY INN EXPRES","75.84","Adoption and Residence Team & Allowances","7011","Services - Supplies & Services to users","23/08/2017"
"Wolverhampton City Council","http://opendatacommunities.org/id/metropolitan-district-council/wolverhampton","Amazon UK Marketplace","32.42","EIP Locality 7","5942","Books","23/08/2017"
"Wolverhampton City Council","http://opendatacommunities.org/id/metropolitan-district-council/wolverhampton","NCE COMPUTER GROUP","193.80","Customer Services","7372","Computing - Purchase of Software","23/08/2017"
"Wolverhampton City Council","http://opendatacommunities.org/id/metropolitan-district-council/wolverhampton","WWW.OAKFURNITURELA","1235.03","Future Space Decant Area","5712","Equipment - Purchase","23/08/2017"
"Wolverhampton City Council","http://opendatacommunities.org/id/metropolitan-district-council/wolverhampton","Omega Travel Ltd","125.50","GEN Y City Transnational","4722","Public Transport","23/08/2017"
"Wolverhampton City Council","http://opendatacommunities.org/id/metropolitan-district-council/wolverhampton","Trainline","12.29","GEN Y City Transnational","4112","Public Transport","23/08/2017"
"Wolverhampton City Council","http://opendatacommunities.org/id/metropolitan-district-council/wolverhampton","FACEBK BDYSKDEAR2","4.18","Communications & Marketing - General","7311","Marketing \ Non-staff advertising","23/08/2017"
"Wolverhampton City Council","http://opendatacommunities.org/id/metropolitan-district-council/wolverhampton","FACEBK ADYSKDEAR2","495.82","Communications & Marketing - General","7311","Marketing \ Non-staff advertising","23/08/2017"
"Wolverhampton City Council","http://opendatacommunities.org/id/metropolitan-district-council/wolverhampton","E01353600000000","250.00","Childrens with Disabilities Team","6011","No Recourse to Public Funds","23/08/2017"
"Wolverhampton City Council","http://opendatacommunities.org/id/metropolitan-district-council/wolverhampton","WORLDSTORES LTD","244.98","LAC Transitions Team","5719","Equipment - Purchase","23/08/2017"
"Wolverhampton City Council","http://opendatacommunities.org/id/metropolitan-district-council/wolverhampton","WWW.HF4YOU.CO.UK","183.32","LAC Transitions Team","1520","Client Allowances","23/08/2017"
"Wolverhampton City Council","http://opendatacommunities.org/id/metropolitan-district-council/wolverhampton","TRADE GEAR LTD TA LIN","120.43","Cemeteries","5734","Computing - Purchase of Software","23/08/2017"
"Wolverhampton City Council","http://opendatacommunities.org/id/metropolitan-district-council/wolverhampton","WP-BMD CERTIFICATE","25.00","Adoption and Residence Team & Allowances","7375","Services - Fees and Charges","23/08/2017"
"Wolverhampton City Council","http://opendatacommunities.org/id/metropolitan-district-council/wolverhampton","000002200500000","200.00","EIP Locality 2","6011","Grant Payments","23/08/2017"
"Wolverhampton City Council","http://opendatacommunities.org/id/metropolitan-district-council/wolverhampton","000002200500000","200.00","EIP Locality 2","6011","Financial Assistance In Exceptional Circ","23/08/2017"
"Wolverhampton City Council","http://opendatacommunities.org/id/metropolitan-district-council/wolverhampton","ARGOS RETAIL GROUP","93.97","EIP Locality 2","5310","Grant Payments","23/08/2017"
"Wolverhampton City Council","http://opendatacommunities.org/id/metropolitan-district-council/wolverhampton","WWW.WMCA.CO.UK","88.00","IMPACT","9399","Client Transport","23/08/2017"
"Wolverhampton City Council","http://opendatacommunities.org/id/metropolitan-district-council/wolverhampton","Amazon UK Marketplace","4.87","Blakenhall Commty & Healthy Living Ctr","5942","Fixtures and Fittings - Purchases","23/08/2017"
"Wolverhampton City Council","http://opendatacommunities.org/id/metropolitan-district-council/wolverhampton","Amazon Prime","7.99","Technical Support","5968","Subscriptions","23/08/2017"
"Wolverhampton City Council","http://opendatacommunities.org/id/metropolitan-district-council/wolverhampton","SAINSBURYS (2340)","11.75","EIP Locality 3","5411","Cleaning Supplies and Materials","23/08/2017"
"Wolverhampton City Council","http://opendatacommunities.org/id/metropolitan-district-council/wolverhampton","SAINSBURYS (2340)","15.50","EIP Locality 3","5411","Grant Payments","23/08/2017"
"Wolverhampton City Council","http://opendatacommunities.org/id/metropolitan-district-council/wolverhampton","STAGEDEPOT.CO.UK","29.90","Jane & Louise Wilson","5251","Equipment - Purchase","23/08/2017"
"Wolverhampton City Council","http://opendatacommunities.org/id/metropolitan-district-council/wolverhampton","Amazon UK Marketplace","4.34","Head of Service - CINCP","5942","Books","23/08/2017"
"Wolverhampton City Council","http://opendatacommunities.org/id/metropolitan-district-council/wolverhampton","AMZ Oxsubor(TM)","-5.99","Civic Halls Non Direct Management A/C","5999","Computing - Consumables","23/08/2017"
"Wolverhampton City Council","http://opendatacommunities.org/id/metropolitan-district-council/wolverhampton","Amazon UK Marketplace","5.98","Civic Halls Non Direct Management A/C","5942","Computing - Consumables","23/08/2017"
"Wolverhampton City Council","http://opendatacommunities.org/id/metropolitan-district-council/wolverhampton","Amazon UK Marketplace","3.99","Civic Halls Non Direct Management A/C","5942","Computing - Consumables","23/08/2017"
"Wolverhampton City Council","http://opendatacommunities.org/id/metropolitan-district-council/wolverhampton","WALSALL COUNCIL","22.00","CIN/CP Social Work Unit - Area 4","9399","Services - Fees and Charges","23/08/2017"
"Wolverhampton City Council","http://opendatacommunities.org/id/metropolitan-district-council/wolverhampton","REGISTRARS OFFICE","10.00","MASH","8299","Training Expenses","23/08/2017"
"Wolverhampton City Council","http://opendatacommunities.org/id/metropolitan-district-council/wolverhampton","Virgintrains.co.uk","-183.00","Fostering Team & Allowances","4112","Public Transport","23/08/2017"
"Wolverhampton City Council","http://opendatacommunities.org/id/metropolitan-district-council/wolverhampton","FLYBE.COM AMDMPW       0","329.34","Fostering Team & Allowances","4511","Public Transport","23/08/2017"
"Wolverhampton City Council","http://opendatacommunities.org/id/metropolitan-district-council/wolverhampton","Virgin Trains","193.00","Fostering Team & Allowances","4112","Public Transport","23/08/2017"
"Wolverhampton City Council","http://opendatacommunities.org/id/metropolitan-district-council/wolverhampton","Trainline","16.47","Fostering Team & Allowances","4112","Public Transport","23/08/2017"
"Wolverhampton City Council","http://opendatacommunities.org/id/metropolitan-district-council/wolverhampton","POST OFFICE COUNTER","131.75","Fostering Team & Allowances","9402","Comms - Postage","23/08/2017"
"Wolverhampton City Council","http://opendatacommunities.org/id/metropolitan-district-council/wolverhampton","Amazon EU","83.31","Blakenhall Commty & Healthy Living Ctr","5969","Equipment - Purchase","22/08/2017"
"Wolverhampton City Council","http://opendatacommunities.org/id/metropolitan-district-council/wolverhampton","AMAZON.CO.UK","6.37","Global Budgets","5942","Books","22/08/2017"
"Wolverhampton City Council","http://opendatacommunities.org/id/metropolitan-district-council/wolverhampton","JORDANS HEATING","71.17","EIP Locality 4","5074","Grant Payments","22/08/2017"
"Wolverhampton City Council","http://opendatacommunities.org/id/metropolitan-district-council/wolverhampton","ASDA HOME SHOPPING","74.81","Ernest Bold Court","5411","Provisions (Not for resale)","22/08/2017"
"Wolverhampton City Council","http://opendatacommunities.org/id/metropolitan-district-council/wolverhampton","POST OFFICE COUNTER","8.45","Head of Service - CINCP","9402","Comms - Postage","22/08/2017"
"Wolverhampton City Council","http://opendatacommunities.org/id/metropolitan-district-council/wolverhampton","PAYPAL  GRADKOINTER","17.00","Environmental Health - Pub Prot - Gen","5047","Equipment - Purchase","22/08/2017"
"Wolverhampton City Council","http://opendatacommunities.org/id/metropolitan-district-council/wolverhampton","TVLICENSING.CO.UK","147.00","Duke Street Bungalows","7392","Services - Consultants","22/08/2017"
"Wolverhampton City Council","http://opendatacommunities.org/id/metropolitan-district-council/wolverhampton","HMCOURTS-SERVICE.G","75.00","Mental Health Assessment & Care Mgmt","9222","Services - Fees and Charges","22/08/2017"
"Wolverhampton City Council","http://opendatacommunities.org/id/metropolitan-district-council/wolverhampton","TESCO STORES (6741)","2.00","Technician","5411","Provisions (Not for resale)","22/08/2017"
"Wolverhampton City Council","http://opendatacommunities.org/id/metropolitan-district-council/wolverhampton","REDWINGS LODGE","109.90","CIN/CP Social Work Unit - Area 1","7011","Section 17","22/08/2017"
"Wolverhampton City Council","http://opendatacommunities.org/id/metropolitan-district-council/wolverhampton","REDWINGS LODGE","23.96","CIN/CP Social Work Unit - Area 1","7011","Section 17","22/08/2017"
"Wolverhampton City Council","http://opendatacommunities.org/id/metropolitan-district-council/wolverhampton","IKEA ONLINE","224.00","LAC Transitions Team","5719","Client Allowances","22/08/2017"
"Wolverhampton City Council","http://opendatacommunities.org/id/metropolitan-district-council/wolverhampton","CHARITY","121.92","Fostering Team & Allowances","8398","Services - Supplies & Services to users","22/08/2017"
"Wolverhampton City Council","http://opendatacommunities.org/id/metropolitan-district-council/wolverhampton","PO THE SCOTLANDS 2232","200.00","Headstart Phase 3","6011","Financial Assistance In Exceptional Circ","22/08/2017"
"Wolverhampton City Council","http://opendatacommunities.org/id/metropolitan-district-council/wolverhampton","JOHNSON CLEANERS","9.00","Mayoral Expenses","7216","Clothing / Uniforms","22/08/2017"
"Wolverhampton City Council","http://opendatacommunities.org/id/metropolitan-district-council/wolverhampton","WAITROSE 696","3.85","Mayoral Expenses","5411","Hospitality","22/08/2017"
"Wolverhampton City Council","http://opendatacommunities.org/id/metropolitan-district-council/wolverhampton","AMAZON.CO.UK","133.33","Admin & Support","5942","Equipment - Purchase","22/08/2017"
"Wolverhampton City Council","http://opendatacommunities.org/id/metropolitan-district-council/wolverhampton","WILKO RETAIL LIMIT","6.75","Admin & Support","5722","Equipment - Purchase","22/08/2017"
"Wolverhampton City Council","http://opendatacommunities.org/id/metropolitan-district-council/wolverhampton","SIEMENS FINANCIAL SVS","0.40","Admin & Support","6012","Services - Fees and Charges","22/08/2017"
"Wolverhampton City Council","http://opendatacommunities.org/id/metropolitan-district-council/wolverhampton","SIEMENS FINANCIAL SVS","208.33","Admin & Support","6012","Services - Fees and Charges","22/08/2017"
"Wolverhampton City Council","http://opendatacommunities.org/id/metropolitan-district-council/wolverhampton","ARGOS RETAIL GROUP","202.60","LAC Transitions Team","5310","Client Allowances","22/08/2017"
"Wolverhampton City Council","http://opendatacommunities.org/id/metropolitan-district-council/wolverhampton","WM MORRISON 024","24.27","EIP Locality 2","5411","Grant Payments","22/08/2017"
"Wolverhampton City Council","http://opendatacommunities.org/id/metropolitan-district-council/wolverhampton","WM MORRISON 024","30.00","EIP Locality 2","5411","Grant Payments","22/08/2017"
"Wolverhampton City Council","http://opendatacommunities.org/id/metropolitan-district-council/wolverhampton","Amazon EU","46.65","Strategic ICTS (ICT Serv Budget)","5969","Equipment - Purchase","22/08/2017"
"Wolverhampton City Council","http://opendatacommunities.org/id/metropolitan-district-council/wolverhampton","Amazon EU","23.32","Strategic ICTS (ICT Serv Budget)","5969","Equipment - Purchase","22/08/2017"
"Wolverhampton City Council","http://opendatacommunities.org/id/metropolitan-district-council/wolverhampton","POST OFFICE COUNTER","65.00","Intensive Family Support Team","9402","Comms - Postage","22/08/2017"
"Wolverhampton City Council","http://opendatacommunities.org/id/metropolitan-district-council/wolverhampton","ARGOS RETAIL GROUP","118.67","Upper Pendeford Farm Childrens Home","5310","Equipment - Purchase","22/08/2017"
"Wolverhampton City Council","http://opendatacommunities.org/id/metropolitan-district-council/wolverhampton","PAYPAL  NAEEMJIVA","43.70","LAC Transitions Team","5999","Client Allowances","22/08/2017"
"Wolverhampton City Council","http://opendatacommunities.org/id/metropolitan-district-council/wolverhampton","Amazon UK Marketplace","34.99","Specialist Support Service - North","5942","Equipment - Purchase","22/08/2017"
"Wolverhampton City Council","http://opendatacommunities.org/id/metropolitan-district-council/wolverhampton","SP  SURFACEPATTERNPRI","74.60","Education And Access","2741","Materials","22/08/2017"
"Wolverhampton City Council","http://opendatacommunities.org/id/metropolitan-district-council/wolverhampton","Trainline","265.71","CIN/CP Social Work Unit - Area 8","4112","Public Transport","22/08/2017"
"Wolverhampton City Council","http://opendatacommunities.org/id/metropolitan-district-council/wolverhampton","Trainline","60.59","CIN/CP Social Work Unit - Area 6","4112","Section 17","22/08/2017"
"Wolverhampton City Council","http://opendatacommunities.org/id/metropolitan-district-council/wolverhampton","BARCLAYS BANK PLC","250.00","CIN/CP Social Work Unit - Area 6","6011","Section 17","22/08/2017"
"Wolverhampton City Council","http://opendatacommunities.org/id/metropolitan-district-council/wolverhampton","Trainline","123.42","Audit Services","4112","Public Transport","22/08/2017"
"Wolverhampton City Council","http://opendatacommunities.org/id/metropolitan-district-council/wolverhampton","Trainline","215.73","Delivery & OCE Development","4112","Public Transport","22/08/2017"
"Wolverhampton City Council","http://opendatacommunities.org/id/metropolitan-district-council/wolverhampton","ARGOS RETAIL GROUP","79.99","EIP Locality 8","5310","Grant Payments","22/08/2017"
"Wolverhampton City Council","http://opendatacommunities.org/id/metropolitan-district-council/wolverhampton","AMAZON.CO.UK","4.79","EIP Locality 7","5942","Materials","22/08/2017"
"Wolverhampton City Council","http://opendatacommunities.org/id/metropolitan-district-council/wolverhampton","Virgin Trains","46.80","Housing Public Health","4112","Public Transport","22/08/2017"
"Wolverhampton City Council","http://opendatacommunities.org/id/metropolitan-district-council/wolverhampton","Akzonobel","42.76","Maintenance of Exhibits","5198","Materials","21/08/2017"
"Wolverhampton City Council","http://opendatacommunities.org/id/metropolitan-district-council/wolverhampton","ASDA HOME SHOPPING","-1.50","Ernest Bold Court","5411","Provisions (Not for resale)","21/08/2017"
"Wolverhampton City Council","http://opendatacommunities.org/id/metropolitan-district-council/wolverhampton","ASDA HOME SHOPPING","87.26","Ernest Bold Court","5411","Provisions (Not for resale)","21/08/2017"
"Wolverhampton City Council","http://opendatacommunities.org/id/metropolitan-district-council/wolverhampton","WATERSTONES","50.00","Global Budgets","5942","Books","21/08/2017"
"Wolverhampton City Council","http://opendatacommunities.org/id/metropolitan-district-council/wolverhampton","WATERSTONES","100.00","Global Budgets","5942","Books","21/08/2017"
"Wolverhampton City Council","http://opendatacommunities.org/id/metropolitan-district-council/wolverhampton","ICELAND","3.29","Civic Centre Catering","5411","Provisions (Not for resale)","21/08/2017"
"Wolverhampton City Council","http://opendatacommunities.org/id/metropolitan-district-council/wolverhampton","CIEH","233.00","Central Training","8699","Training Expenses","21/08/2017"
"Wolverhampton City Council","http://opendatacommunities.org/id/metropolitan-district-council/wolverhampton","WLY COMPLETESAVE.CO.UK","15.00","Headstart - Learning Technologies Team","5968","Subscriptions","21/08/2017"
"Wolverhampton City Council","http://opendatacommunities.org/id/metropolitan-district-council/wolverhampton","Amazon UK Marketplace","65.12","Headstart Phase 3","5942","Equipment - Purchase","21/08/2017"
"Wolverhampton City Council","http://opendatacommunities.org/id/metropolitan-district-council/wolverhampton","Amazon UK Marketplace","35.96","Headstart Phase 3","5942","Equipment - Purchase","21/08/2017"
"Wolverhampton City Council","http://opendatacommunities.org/id/metropolitan-district-council/wolverhampton","AMAZON.CO.UK","12.49","Headstart Phase 3","5942","Equipment - Purchase","21/08/2017"
"Wolverhampton City Council","http://opendatacommunities.org/id/metropolitan-district-council/wolverhampton","Amazon UK Marketplace","27.65","Headstart Phase 3","5942","Equipment - Purchase","21/08/2017"
"Wolverhampton City Council","http://opendatacommunities.org/id/metropolitan-district-council/wolverhampton","B&M RETAIL","38.67","Aldersley Leisure Village","5310","Equipment - Purchase","21/08/2017"
"Wolverhampton City Council","http://opendatacommunities.org/id/metropolitan-district-council/wolverhampton","PAYPAL  COM-ED","98.55","Workforce Development","8211","Training Expenses","21/08/2017"
"Wolverhampton City Council","http://opendatacommunities.org/id/metropolitan-district-council/wolverhampton","PAYPAL  COM-ED","81.99","Workforce Development","8211","Training Expenses","21/08/2017"
"Wolverhampton City Council","http://opendatacommunities.org/id/metropolitan-district-council/wolverhampton","HOME BARGAINS WOLVERHA","16.36","Aldersley Leisure Village","5251","Accommodation Costs","21/08/2017"
"Wolverhampton City Council","http://opendatacommunities.org/id/metropolitan-district-council/wolverhampton","WISEPOPSCOM","39.30","City Direct","7372","Computing - Purchase of Software","21/08/2017"
"Wolverhampton City Council","http://opendatacommunities.org/id/metropolitan-district-council/wolverhampton","DVSA MOT COMP 2","205.00","Fleet Management","9399","MOT & HGV Tests","21/08/2017"
"Wolverhampton City Council","http://opendatacommunities.org/id/metropolitan-district-council/wolverhampton","WWW.CARESHOP.CO.UK","76.95","Ernest Bold Court","5999","Equipment - Purchase","21/08/2017"
"Wolverhampton City Council","http://opendatacommunities.org/id/metropolitan-district-council/wolverhampton","WWW.SEVERNTRENTSEARCHE","130.00","Legal Services","4900","Services - Professional Fees","21/08/2017"
"Wolverhampton City Council","http://opendatacommunities.org/id/metropolitan-district-council/wolverhampton","CARVER/WOLVERHAMPTON/L","10.05","Direct Schools","5211","Materials","21/08/2017"
"Wolverhampton City Council","http://opendatacommunities.org/id/metropolitan-district-council/wolverhampton","VERIFONE TAXI/PRIVATE","26.40","CIN/CP Social Work Unit - Area 6","4121","Section 17","21/08/2017"
"Wolverhampton City Council","http://opendatacommunities.org/id/metropolitan-district-council/wolverhampton","HEADSETS4BUSINESS","1555.20","Customer Services","4812","Comms - Mobile Telephones","21/08/2017"
"Wolverhampton City Council","http://opendatacommunities.org/id/metropolitan-district-council/wolverhampton","WWW.ARGOS.CO.UK","149.99","CIN/CP Social Work Unit - Area 3","5310","Equipment - Purchase","21/08/2017"
"Wolverhampton City Council","http://opendatacommunities.org/id/metropolitan-district-council/wolverhampton","ROYAL CARPETS","150.00","LAC Transitions Team","5713","Client Allowances","21/08/2017"
"Wolverhampton City Council","http://opendatacommunities.org/id/metropolitan-district-council/wolverhampton","CO-OPERATIVE FOOD","30.00","EIP Locality 6","5411","Grant Payments","21/08/2017"
"Wolverhampton City Council","http://opendatacommunities.org/id/metropolitan-district-council/wolverhampton","AMAZON.CO.UK","224.99","Upper Pendeford Farm Childrens Home","5942","Equipment - Purchase","21/08/2017"
"Wolverhampton City Council","http://opendatacommunities.org/id/metropolitan-district-council/wolverhampton","Amazon UK Marketplace","11.04","Upper Pendeford Farm Childrens Home","5942","Cleaning Supplies and Materials","21/08/2017"
"Wolverhampton City Council","http://opendatacommunities.org/id/metropolitan-district-council/wolverhampton","ASDA HOME SHOPPING","141.20","Upper Pendeford Farm Childrens Home","5411","Provisions (Not for resale)","21/08/2017"
"Wolverhampton City Council","http://opendatacommunities.org/id/metropolitan-district-council/wolverhampton","THE WORKS","8.00","Archives","5310","Books","21/08/2017"
"Wolverhampton City Council","http://opendatacommunities.org/id/metropolitan-district-council/wolverhampton","AMAZON UK RETAIL AMAZO","66.45","Archives","5999","Equipment - Purchase","21/08/2017"
"Wolverhampton City Council","http://opendatacommunities.org/id/metropolitan-district-council/wolverhampton","AMAZON UK RETAIL AMAZO","66.46","Archives","5999","Equipment - Purchase","21/08/2017"
"Wolverhampton City Council","http://opendatacommunities.org/id/metropolitan-district-council/wolverhampton","Amazon UK Marketplace","12.79","Archives","5942","Books","21/08/2017"
"Wolverhampton City Council","http://opendatacommunities.org/id/metropolitan-district-council/wolverhampton","HOME BARGAINS","3.18","EIP Locality 1","5251","Grant Payments","21/08/2017"
"Wolverhampton City Council","http://opendatacommunities.org/id/metropolitan-district-council/wolverhampton","HERON FOODS LTD","8.47","EIP Locality 1","5499","Catering","21/08/2017"
"Wolverhampton City Council","http://opendatacommunities.org/id/metropolitan-district-council/wolverhampton","LOYD 89 CHURCH STREET","10.00","EIP Locality 1","6011","Services - Bank Charges","21/08/2017"
"Wolverhampton City Council","http://opendatacommunities.org/id/metropolitan-district-council/wolverhampton","OFFICIALRECORDCOUK","15.98","LAC Team","7392","Services - Consultants","21/08/2017"
"Wolverhampton City Council","http://opendatacommunities.org/id/metropolitan-district-council/wolverhampton","Wix.com","93.13","Technical Support","5817","Computing - Purchase of Software","21/08/2017"
"Wolverhampton City Council","http://opendatacommunities.org/id/metropolitan-district-council/wolverhampton","CUMMINGS BROTHERS LOCK","58.33","Global Budgets","7399","Stationery","21/08/2017"
"Wolverhampton City Council","http://opendatacommunities.org/id/metropolitan-district-council/wolverhampton","RICHERSOUNDS.COM","425.29","Jane & Louise Wilson","5732","Equipment - Purchase","21/08/2017"
"Wolverhampton City Council","http://opendatacommunities.org/id/metropolitan-district-council/wolverhampton","ARGOS LTD","22.48","LAC Transitions Team","5310","Client Allowances","18/08/2017"
"Wolverhampton City Council","http://opendatacommunities.org/id/metropolitan-district-council/wolverhampton","RUTHIN CRAFT CENTR","100.02","Michael Brennand Spring Touring 2017","5970","Materials","18/08/2017"
"Wolverhampton City Council","http://opendatacommunities.org/id/metropolitan-district-council/wolverhampton","Cross Country Trains","7.60","Commissioning Disabilities","4112","Public Transport","18/08/2017"
"Wolverhampton City Council","http://opendatacommunities.org/id/metropolitan-district-council/wolverhampton","Cross Country Trains","7.60","Commissioning Disabilities","4112","Public Transport","18/08/2017"
"Wolverhampton City Council","http://opendatacommunities.org/id/metropolitan-district-council/wolverhampton","Virgin Trains","130.00","Technical Support","4112","Public Transport","18/08/2017"
"Wolverhampton City Council","http://opendatacommunities.org/id/metropolitan-district-council/wolverhampton","E01577600000000","100.00","EIP Locality 3","6011","Grant Payments","18/08/2017"
"Wolverhampton City Council","http://opendatacommunities.org/id/metropolitan-district-council/wolverhampton","PARKING SERVICES","10.00","Archives","8299","Parking Fees","18/08/2017"
"Wolverhampton City Council","http://opendatacommunities.org/id/metropolitan-district-council/wolverhampton","Amazon UK Marketplace","5.99","Civic Halls Non Direct Management A/C","5942","Computing - Consumables","18/08/2017"
"Wolverhampton City Council","http://opendatacommunities.org/id/metropolitan-district-council/wolverhampton","AMAZON UK RETAIL AMAZO","27.06","Welfare Rights","5999","Catering","18/08/2017"
"Wolverhampton City Council","http://opendatacommunities.org/id/metropolitan-district-council/wolverhampton","B & Q 1243","18.12","Technical Material","5211","Materials","18/08/2017"
"Wolverhampton City Council","http://opendatacommunities.org/id/metropolitan-district-council/wolverhampton","Amazon UK Marketplace","11.00","Ground Maintenance Overheads","5942","Books","18/08/2017"
"Wolverhampton City Council","http://opendatacommunities.org/id/metropolitan-district-council/wolverhampton","REDWINGS LODGE","239.80","CIN/CP Social Work Unit - Area 1","7011","Section 17","18/08/2017"
"Wolverhampton City Council","http://opendatacommunities.org/id/metropolitan-district-council/wolverhampton","Virgin Trains","8.70","Adoption and Residence Team & Allowances","4112","Public Transport","18/08/2017"
"Wolverhampton City Council","http://opendatacommunities.org/id/metropolitan-district-council/wolverhampton","PAYPAL  EINTSALES","19.85","Strategic Director Place","5732","Equipment - Purchase","18/08/2017"
"Wolverhampton City Council","http://opendatacommunities.org/id/metropolitan-district-council/wolverhampton","CHILLINGTON SELF STORA","-66.00","LAC Transitions Team","4214","Client Allowances","18/08/2017"
"Wolverhampton City Council","http://opendatacommunities.org/id/metropolitan-district-council/wolverhampton","AMAZON UK RETAIL AMAZO","33.96","Upper Pendeford Farm Childrens Home","5999","Cleaning Supplies and Materials","18/08/2017"
"Wolverhampton City Council","http://opendatacommunities.org/id/metropolitan-district-council/wolverhampton","Amazon EU","13.20","Upper Pendeford Farm Childrens Home","5969","Cleaning Supplies and Materials","18/08/2017"
"Wolverhampton City Council","http://opendatacommunities.org/id/metropolitan-district-council/wolverhampton","Amazon EU","56.84","Upper Pendeford Farm Childrens Home","5969","Cleaning Supplies and Materials","18/08/2017"
"Wolverhampton City Council","http://opendatacommunities.org/id/metropolitan-district-council/wolverhampton","Amazon EU","13.27","Upper Pendeford Farm Childrens Home","5969","Cleaning Supplies and Materials","18/08/2017"
"Wolverhampton City Council","http://opendatacommunities.org/id/metropolitan-district-council/wolverhampton","Amazon UK Marketplace","24.00","Upper Pendeford Farm Childrens Home","5942","Furniture","18/08/2017"
"Wolverhampton City Council","http://opendatacommunities.org/id/metropolitan-district-council/wolverhampton","Amazon Prime","7.99","Upper Pendeford Farm Childrens Home","5968","Subscriptions","18/08/2017"
"Wolverhampton City Council","http://opendatacommunities.org/id/metropolitan-district-council/wolverhampton","Virgin Trains","60.70","LAC Team","4112","Public Transport","18/08/2017"
"Wolverhampton City Council","http://opendatacommunities.org/id/metropolitan-district-council/wolverhampton","AMZ Office Furniture O","-125.00","Headstart Phase 3","5999","Furniture","18/08/2017"
"Wolverhampton City Council","http://opendatacommunities.org/id/metropolitan-district-council/wolverhampton","B&M RETAIL LTD","15.94","EIP Locality 1","5310","Equipment - Purchase","18/08/2017"
"Wolverhampton City Council","http://opendatacommunities.org/id/metropolitan-district-council/wolverhampton","REDWINGS LODGE","47.92","CIN/CP Social Work Unit - Area 1","7011","Section 17","18/08/2017"
"Wolverhampton City Council","http://opendatacommunities.org/id/metropolitan-district-council/wolverhampton","B&M RETAIL LTD","29.12","CIN/CP Social Work Unit - Area 8","5310","No Recourse to Public Funds","18/08/2017"
"Wolverhampton City Council","http://opendatacommunities.org/id/metropolitan-district-council/wolverhampton","WWW.PURPLEBRICKS.COM","118.80","CIN/CP Social Work Unit - Area 7","6513","Section 17","18/08/2017"
"Wolverhampton City Council","http://opendatacommunities.org/id/metropolitan-district-council/wolverhampton","000002200500000","250.00","CIN/CP Social Work Unit - Area 6","6011","Financial Assistance In Exceptional Circ","18/08/2017"
"Wolverhampton City Council","http://opendatacommunities.org/id/metropolitan-district-council/wolverhampton","BCC REGISTER OFFIC","15.00","CIN/CP Social Work Unit - Area 6","9399","Section 17","18/08/2017"
"Wolverhampton City Council","http://opendatacommunities.org/id/metropolitan-district-council/wolverhampton","VERIFONE TAXI/PRIVATE","3.85","CIN/CP Social Work Unit - Area 6","4121","No Recourse to Public Funds","18/08/2017"
"Wolverhampton City Council","http://opendatacommunities.org/id/metropolitan-district-council/wolverhampton","VERIFONE TAXI/PRIVATE","14.30","CIN/CP Social Work Unit - Area 6","4121","Section 17","18/08/2017"
"Wolverhampton City Council","http://opendatacommunities.org/id/metropolitan-district-council/wolverhampton","TALBOTS LAW LTD","112.00","CIN/CP Social Work Unit - Area 6","8111","Section 17","18/08/2017"
"Wolverhampton City Council","http://opendatacommunities.org/id/metropolitan-district-council/wolverhampton","ARGOS RETAIL GROUP","149.99","CIN/CP Social Work Unit - Area 3","5310","Equipment - Purchase","18/08/2017"
"Wolverhampton City Council","http://opendatacommunities.org/id/metropolitan-district-council/wolverhampton","Amazon UK Marketplace","8.04","Headstart Phase 3","5942","Equipment - Purchase","18/08/2017"
"Wolverhampton City Council","http://opendatacommunities.org/id/metropolitan-district-council/wolverhampton","Amazon UK Marketplace","24.97","Headstart Phase 3","5942","Equipment - Purchase","18/08/2017"
"Wolverhampton City Council","http://opendatacommunities.org/id/metropolitan-district-council/wolverhampton","Amazon UK Marketplace","26.92","Headstart Phase 3","5942","Equipment - Purchase","18/08/2017"
"Wolverhampton City Council","http://opendatacommunities.org/id/metropolitan-district-council/wolverhampton","Amazon UK Marketplace","9.95","Headstart Phase 3","5942","Equipment - Purchase","18/08/2017"
"Wolverhampton City Council","http://opendatacommunities.org/id/metropolitan-district-council/wolverhampton","Amazon UK Marketplace","57.33","Headstart Phase 3","5942","Equipment - Purchase","18/08/2017"
"Wolverhampton City Council","http://opendatacommunities.org/id/metropolitan-district-council/wolverhampton","Amazon UK Marketplace","1.79","Headstart Phase 3","5942","Equipment - Purchase","18/08/2017"
"Wolverhampton City Council","http://opendatacommunities.org/id/metropolitan-district-council/wolverhampton","SUK RETAIL LTD","30.69","Macmillan Welfare Rights","5943","Stationery","18/08/2017"
"Wolverhampton City Council","http://opendatacommunities.org/id/metropolitan-district-council/wolverhampton","Trainline","59.67","LAC Transitions Team","4112","Client Allowances","18/08/2017"
"Wolverhampton City Council","http://opendatacommunities.org/id/metropolitan-district-council/wolverhampton","AMAZON UK RETAIL AMAZO","41.50","Caretakers Community Centre","5999","Equipment - Purchase","18/08/2017"
"Wolverhampton City Council","http://opendatacommunities.org/id/metropolitan-district-council/wolverhampton","CAMPUSLIVINGVILLAG","212.50","LAC Transitions Team","7011","Client Allowances","18/08/2017"
"Wolverhampton City Council","http://opendatacommunities.org/id/metropolitan-district-council/wolverhampton","Virgintrains.co.uk","-172.00","Adoption and Residence Team & Allowances","4112","Public Transport","18/08/2017"
"Wolverhampton City Council","http://opendatacommunities.org/id/metropolitan-district-council/wolverhampton","Virgintrains.co.uk","-26.40","Adoption and Residence Team & Allowances","4112","Public Transport","18/08/2017"
"Wolverhampton City Council","http://opendatacommunities.org/id/metropolitan-district-council/wolverhampton","SURVEYMONKEY.COM","249.17","Information Management","5968","Subscriptions","18/08/2017"
"Wolverhampton City Council","http://opendatacommunities.org/id/metropolitan-district-council/wolverhampton","AMAZON.CO.UK","20.68","Headstart Phase 3","5999","Equipment - Purchase","18/08/2017"
"Wolverhampton City Council","http://opendatacommunities.org/id/metropolitan-district-council/wolverhampton","WW.TEACHINGEXHIBIT","121.85","Headstart Phase 3","8699","Conference Expenses","18/08/2017"
"Wolverhampton City Council","http://opendatacommunities.org/id/metropolitan-district-council/wolverhampton","Amazon UK Marketplace","49.72","Headstart Phase 3","5942","Equipment - Purchase","18/08/2017"
"Wolverhampton City Council","http://opendatacommunities.org/id/metropolitan-district-council/wolverhampton","CARVER/WOLVERHAMPTON/L","20.73","Culwell Street Depot","5211","R&M - Departmental planned (external)","17/08/2017"
"Wolverhampton City Council","http://opendatacommunities.org/id/metropolitan-district-council/wolverhampton","E00783400000000","50.00","EIP Locality 1","6011","Grant Payments","17/08/2017"
"Wolverhampton City Council","http://opendatacommunities.org/id/metropolitan-district-council/wolverhampton","FOCUSGAMES","257.00","Learning Disabilities Management","7392","Equipment - Purchase","17/08/2017"
"Wolverhampton City Council","http://opendatacommunities.org/id/metropolitan-district-council/wolverhampton","MAN UTD TICKET OFF","-30.00","LAC Team","7997","Financial Assistance In Exceptional Circ","17/08/2017"
"Wolverhampton City Council","http://opendatacommunities.org/id/metropolitan-district-council/wolverhampton","WM MORRISONS","18.68","Play General","5411","Provisions (Not for resale)","17/08/2017"
"Wolverhampton City Council","http://opendatacommunities.org/id/metropolitan-district-council/wolverhampton","SPORTSDIRECT.COM","180.71","Play General","5941","Equipment - Purchase","17/08/2017"
"Wolverhampton City Council","http://opendatacommunities.org/id/metropolitan-district-council/wolverhampton","ARGOS LTD","21.65","Play General","5310","Equipment - Purchase","17/08/2017"
"Wolverhampton City Council","http://opendatacommunities.org/id/metropolitan-district-council/wolverhampton","ARGOS LTD","32.47","Play General","5310","Equipment - Purchase","17/08/2017"
"Wolverhampton City Council","http://opendatacommunities.org/id/metropolitan-district-council/wolverhampton","SCREWFIX DIRECT","292.93","Car Parks Operational Staff","5211","Clothing / Uniforms","17/08/2017"
"Wolverhampton City Council","http://opendatacommunities.org/id/metropolitan-district-council/wolverhampton","WWW.SEVERNTRENTSEARCHE","15.00","Legal Services","4900","Services - Professional Fees","17/08/2017"
"Wolverhampton City Council","http://opendatacommunities.org/id/metropolitan-district-council/wolverhampton","ALBRIGHTON FEEDS LIMIT","56.00","Parks - Ranger Service","5995","Equipment - Purchase","17/08/2017"
"Wolverhampton City Council","http://opendatacommunities.org/id/metropolitan-district-council/wolverhampton","PAST PRESENT AND FUTUR","312.50","LAC Transitions Team","5732","Client Allowances","17/08/2017"
"Wolverhampton City Council","http://opendatacommunities.org/id/metropolitan-district-council/wolverhampton","CUMMINGS BROTHERS LOCK","125.00","Aldersley Leisure Village","7399","Equipment - Purchase","17/08/2017"
"Wolverhampton City Council","http://opendatacommunities.org/id/metropolitan-district-council/wolverhampton","POST OFFICE COUNTER","88.50","Macmillan Welfare Rights","9402","Comms - Postage","17/08/2017"
"Wolverhampton City Council","http://opendatacommunities.org/id/metropolitan-district-council/wolverhampton","Trainline","81.09","Youth Offending Team","4112","Public Transport","17/08/2017"
"Wolverhampton City Council","http://opendatacommunities.org/id/metropolitan-district-council/wolverhampton","CHASE HOTEL H","210.94","Adoption and Residence Team & Allowances","7011","Services - Supplies & Services to users","17/08/2017"
"Wolverhampton City Council","http://opendatacommunities.org/id/metropolitan-district-council/wolverhampton","Virgin Trains","169.30","Adoption and Residence Team & Allowances","4112","Public Transport","17/08/2017"
"Wolverhampton City Council","http://opendatacommunities.org/id/metropolitan-district-council/wolverhampton","LOYD 89 CHURCH STREET","100.00","EIP Locality 2","6011","Grant Payments","17/08/2017"
"Wolverhampton City Council","http://opendatacommunities.org/id/metropolitan-district-council/wolverhampton","LOYD 89 CHURCH STREET","80.00","EIP Locality 2","6011","Grant Payments","17/08/2017"
"Wolverhampton City Council","http://opendatacommunities.org/id/metropolitan-district-council/wolverhampton","POUND ZONE","6.00","EIP Locality 2","5310","Grant Payments","17/08/2017"
"Wolverhampton City Council","http://opendatacommunities.org/id/metropolitan-district-council/wolverhampton","BARCLAYS BANK PLC","150.00","Emergency Duty Team","6011","Financial Assistance In Exceptional Circ","17/08/2017"
"Wolverhampton City Council","http://opendatacommunities.org/id/metropolitan-district-council/wolverhampton","ARGOS RETAIL GROUP","124.99","LAC Transitions Team","5310","Client Allowances","17/08/2017"
"Wolverhampton City Council","http://opendatacommunities.org/id/metropolitan-district-council/wolverhampton","NATWEST BANK","50.00","Ernest Bold Court","6011","Financial Assistance In Exceptional Circ","17/08/2017"
"Wolverhampton City Council","http://opendatacommunities.org/id/metropolitan-district-council/wolverhampton","PREMIER INN","359.54","Culwell Street Depot","3811","R&M - Departmental planned (external)","17/08/2017"
"Wolverhampton City Council","http://opendatacommunities.org/id/metropolitan-district-council/wolverhampton","WWW.THERANGE.CO.UK","19.92","Headstart Phase 3","5712","Equipment - Purchase","17/08/2017"
"Wolverhampton City Council","http://opendatacommunities.org/id/metropolitan-district-council/wolverhampton","Amazon UK Marketplace","53.12","Headstart Phase 3","5942","Equipment - Purchase","17/08/2017"
"Wolverhampton City Council","http://opendatacommunities.org/id/metropolitan-district-council/wolverhampton","Amazon UK Marketplace","16.99","Headstart Phase 3","5942","Equipment - Purchase","17/08/2017"
"Wolverhampton City Council","http://opendatacommunities.org/id/metropolitan-district-council/wolverhampton","LOVE2SHOP.CO.UK","306.45","IMPACT","8641","Educ Trips, Holidays, Outings, Activity","17/08/2017"
"Wolverhampton City Council","http://opendatacommunities.org/id/metropolitan-district-council/wolverhampton","SPECSAVERSEVOUGB-","850.00","Eye Test Vouchers (HR)","8043","Services - Professional Fees","17/08/2017"
"Wolverhampton City Council","http://opendatacommunities.org/id/metropolitan-district-council/wolverhampton","000002200500000","250.00","CIN/CP Social Work Unit - Area 6","6011","Section 17","17/08/2017"
"Wolverhampton City Council","http://opendatacommunities.org/id/metropolitan-district-council/wolverhampton","VERIFONE TAXI/PRIVATE","21.12","CIN/CP Social Work Unit - Area 6","4121","Section 17","17/08/2017"
"Wolverhampton City Council","http://opendatacommunities.org/id/metropolitan-district-council/wolverhampton","CARD FACTORY","2.22","Delivery & OCE Development","5947","Equipment - Purchase","17/08/2017"
"Wolverhampton City Council","http://opendatacommunities.org/id/metropolitan-district-council/wolverhampton","BEATTIES","70.05","Delivery & OCE Development","5311","Equipment - Purchase","17/08/2017"
"Wolverhampton City Council","http://opendatacommunities.org/id/metropolitan-district-council/wolverhampton","PO LOW HILL 1592","140.00","EIP Locality 8","6011","Grant Payments","17/08/2017"
"Wolverhampton City Council","http://opendatacommunities.org/id/metropolitan-district-council/wolverhampton","Amazon UK Marketplace","4.99","Members Expenses","5942","Equipment - Purchase","17/08/2017"
"Wolverhampton City Council","http://opendatacommunities.org/id/metropolitan-district-council/wolverhampton","Virgin Trains","59.25","Members Expenses","4112","Public Transport","17/08/2017"
"Wolverhampton City Council","http://opendatacommunities.org/id/metropolitan-district-council/wolverhampton","TFM FARM & COUNTRY SUP","200.94","Northicote Farm","5399","Materials","17/08/2017"
"Wolverhampton City Council","http://opendatacommunities.org/id/metropolitan-district-council/wolverhampton","WWW.OFFICEFURNITUREONL","294.00","EIP Locality 7","5712","Equipment - Purchase","16/08/2017"
"Wolverhampton City Council","http://opendatacommunities.org/id/metropolitan-district-council/wolverhampton","WWW.LABC.UK.COM","220.00","Building Consultancy","7399","Services - Professional Fees","16/08/2017"
"Wolverhampton City Council","http://opendatacommunities.org/id/metropolitan-district-council/wolverhampton","WWW.LABC.UK.COM","35.00","Building Consultancy","7399","Services - Professional Fees","16/08/2017"
"Wolverhampton City Council","http://opendatacommunities.org/id/metropolitan-district-council/wolverhampton","HIGHFIELD HOUSE HO","385.00","CIN/CP Social Work Unit - Area 3","7011","Accommodation Costs","16/08/2017"
"Wolverhampton City Council","http://opendatacommunities.org/id/metropolitan-district-council/wolverhampton","ISC 2","52.08","Information Governance Team","8299","Training Expenses","16/08/2017"
"Wolverhampton City Council","http://opendatacommunities.org/id/metropolitan-district-council/wolverhampton","S & B WASTE","169.50","Central Costs","4900","Services - Supplies & Services to users","16/08/2017"
"Wolverhampton City Council","http://opendatacommunities.org/id/metropolitan-district-council/wolverhampton","Virgin Trains","158.60","Environmental Health - Pub Prot - Gen","4112","Services - Fees and Charges","16/08/2017"
"Wolverhampton City Council","http://opendatacommunities.org/id/metropolitan-district-council/wolverhampton","GO OUTDOORS","-216.65","Play General","5941","Equipment - Purchase","16/08/2017"
"Wolverhampton City Council","http://opendatacommunities.org/id/metropolitan-district-council/wolverhampton","HALFORDS 0775","33.33","Play General","5940","Equipment - Purchase","16/08/2017"
"Wolverhampton City Council","http://opendatacommunities.org/id/metropolitan-district-council/wolverhampton","HOME BARGAINS WOLVERHA","10.98","Play General","5251","Equipment - Purchase","16/08/2017"
"Wolverhampton City Council","http://opendatacommunities.org/id/metropolitan-district-council/wolverhampton","G N GROSVENOR LTD","68.57","Play General","5983","Heating Oil","16/08/2017"
"Wolverhampton City Council","http://opendatacommunities.org/id/metropolitan-district-council/wolverhampton","MACHINE MART LTD","239.00","Play General","5722","Equipment - Purchase","16/08/2017"
"Wolverhampton City Council","http://opendatacommunities.org/id/metropolitan-district-council/wolverhampton","GO OUTDOORS","5.25","Play General","5941","Equipment - Purchase","16/08/2017"
"Wolverhampton City Council","http://opendatacommunities.org/id/metropolitan-district-council/wolverhampton","WICKES","30.04","Play General","5211","Materials","16/08/2017"
"Wolverhampton City Council","http://opendatacommunities.org/id/metropolitan-district-council/wolverhampton","WWW.KINGDOM.CO.UK","75.00","LAC Transitions Team","7299","Services - Supplies & Services to users","16/08/2017"
"Wolverhampton City Council","http://opendatacommunities.org/id/metropolitan-district-council/wolverhampton","SAINSBURYS SACAT 2040","5.83","Duke Street Bungalows","5411","Provisions (Not for resale)","16/08/2017"
"Wolverhampton City Council","http://opendatacommunities.org/id/metropolitan-district-council/wolverhampton","H R MANNING LTD","90.00","CIN/CP Social Work Unit - Area 7","1799","Section 17","16/08/2017"
"Wolverhampton City Council","http://opendatacommunities.org/id/metropolitan-district-council/wolverhampton","Virgintrains.co.uk","-183.00","MASH","4112","Public Transport","16/08/2017"
"Wolverhampton City Council","http://opendatacommunities.org/id/metropolitan-district-council/wolverhampton","REGISTRARS OFFICE","11.00","CIN/CP Social Work Unit - Area 5","8299","Section 17","16/08/2017"
"Wolverhampton City Council","http://opendatacommunities.org/id/metropolitan-district-council/wolverhampton","VERIFONE TAXI/PRIVATE","30.80","CIN/CP Social Work Unit - Area 5","4121","Section 17","16/08/2017"
"Wolverhampton City Council","http://opendatacommunities.org/id/metropolitan-district-council/wolverhampton","MAX SPIELMANN LTD","18.00","CIN/CP Social Work Unit - Area 5","7221","Section 17","16/08/2017"
"Wolverhampton City Council","http://opendatacommunities.org/id/metropolitan-district-council/wolverhampton","Amazon EU","5.78","Technical Support","5969","Equipment - Purchase","16/08/2017"
"Wolverhampton City Council","http://opendatacommunities.org/id/metropolitan-district-council/wolverhampton","Lillian Rose Flowers","39.98","Fostering Team & Allowances","5992","Equipment - Purchase","16/08/2017"
"Wolverhampton City Council","http://opendatacommunities.org/id/metropolitan-district-council/wolverhampton","Virgin Trains","193.00","Fostering Team & Allowances","4112","Public Transport","16/08/2017"
"Wolverhampton City Council","http://opendatacommunities.org/id/metropolitan-district-council/wolverhampton","WATERLOO HOTEL","353.33","Headstart - Learning Technologies Team","7011","Services - Supplies & Services to users","16/08/2017"
"Wolverhampton City Council","http://opendatacommunities.org/id/metropolitan-district-council/wolverhampton","WWW.ISTOCK.COM","310.00","Communications & Marketing - General","5971","Services - Professional Fees","16/08/2017"
"Wolverhampton City Council","http://opendatacommunities.org/id/metropolitan-district-council/wolverhampton","BARCLAYS BANK PLC","100.00","Headstart - Young People Engagement","6011","Financial Assistance In Exceptional Circ","16/08/2017"
"Wolverhampton City Council","http://opendatacommunities.org/id/metropolitan-district-council/wolverhampton","OCEANIC SAUNAS LIMITED","74.00","Central Baths","5996","Equipment - Purchase","16/08/2017"
"Wolverhampton City Council","http://opendatacommunities.org/id/metropolitan-district-council/wolverhampton","ASDA SUPERSTORE","6.61","Mayoral Expenses","5411","Hospitality","16/08/2017"
"Wolverhampton City Council","http://opendatacommunities.org/id/metropolitan-district-council/wolverhampton","Amazon UK Marketplace","17.80","Caretakers Community Centre","5942","Books","16/08/2017"
"Wolverhampton City Council","http://opendatacommunities.org/id/metropolitan-district-council/wolverhampton","Virgintrains.co.uk","-94.00","Adoption and Residence Team & Allowances","4112","Public Transport","16/08/2017"
"Wolverhampton City Council","http://opendatacommunities.org/id/metropolitan-district-council/wolverhampton","PCS AMV Couriers LTD","90.00","EIP Locality 2","4214","Grant Payments","16/08/2017"
"Wolverhampton City Council","http://opendatacommunities.org/id/metropolitan-district-council/wolverhampton","ARGOS LTD","91.96","Early Years & Universal Service","5310","Equipment - Purchase","16/08/2017"
"Wolverhampton City Council","http://opendatacommunities.org/id/metropolitan-district-council/wolverhampton","CHILLINGTON SELF STORA","105.37","LAC Transitions Team","4214","Client Allowances","16/08/2017"
"Wolverhampton City Council","http://opendatacommunities.org/id/metropolitan-district-council/wolverhampton","STAGECOACH SERVICE","16.50","Intensive Family Support Team","4131","Public Transport","16/08/2017"
"Wolverhampton City Council","http://opendatacommunities.org/id/metropolitan-district-council/wolverhampton","TOYS R US","-34.99","Upper Pendeford Farm Childrens Home","5311","Equipment - Purchase","16/08/2017"
"Wolverhampton City Council","http://opendatacommunities.org/id/metropolitan-district-council/wolverhampton","ASDA HOME SHOPPING","189.97","Upper Pendeford Farm Childrens Home","5411","Provisions (Not for resale)","16/08/2017"
"Wolverhampton City Council","http://opendatacommunities.org/id/metropolitan-district-council/wolverhampton","ASDA HOME SHOPPING","2.88","Upper Pendeford Farm Childrens Home","5411","Provisions (Not for resale)","16/08/2017"
"Wolverhampton City Council","http://opendatacommunities.org/id/metropolitan-district-council/wolverhampton","WWW.AMEY.CO.UK","104.62","EIP Locality 5","5211","Refuse Collection","16/08/2017"
"Wolverhampton City Council","http://opendatacommunities.org/id/metropolitan-district-council/wolverhampton","PAYPAL  HARMINLTD","59.98","LAC Transitions Team","5732","Equipment - Purchase","16/08/2017"
"Wolverhampton City Council","http://opendatacommunities.org/id/metropolitan-district-council/wolverhampton","PAYPAL  DIRECTFURNI","339.98","LAC Transitions Team","5712","Client Allowances","16/08/2017"
"Wolverhampton City Council","http://opendatacommunities.org/id/metropolitan-district-council/wolverhampton","METROLINK TVM","4.30","Research & Development","4131","Public Transport","16/08/2017"
"Wolverhampton City Council","http://opendatacommunities.org/id/metropolitan-district-council/wolverhampton","HUGHES","131.67","LAC Transitions Team","5732","Client Allowances","16/08/2017"
"Wolverhampton City Council","http://opendatacommunities.org/id/metropolitan-district-council/wolverhampton","HOME BARGAINS","8.41","EIP Locality 1","5251","Equipment - Purchase","16/08/2017"
"Wolverhampton City Council","http://opendatacommunities.org/id/metropolitan-district-council/wolverhampton","CUMMINGS BROTHERS LOCK","16.25","Culwell Street Depot","7399","R&M - Departmental planned (external)","16/08/2017"
"Wolverhampton City Council","http://opendatacommunities.org/id/metropolitan-district-council/wolverhampton","TESCO STORES 5397","3.45","EIP Locality 1","5411","Provisions (Not for resale)","16/08/2017"
"Wolverhampton City Council","http://opendatacommunities.org/id/metropolitan-district-council/wolverhampton","PO WILLENHALL RD 5497","250.00","EIP Locality 1","6011","Grant Payments","16/08/2017"
"Wolverhampton City Council","http://opendatacommunities.org/id/metropolitan-district-council/wolverhampton","Amazon UK Marketplace","94.97","EIP Locality 1","5942","Equipment - Purchase","16/08/2017"
"Wolverhampton City Council","http://opendatacommunities.org/id/metropolitan-district-council/wolverhampton","Amazon UK Marketplace","38.33","LAC Transitions Team","5942","Client Allowances","16/08/2017"
"Wolverhampton City Council","http://opendatacommunities.org/id/metropolitan-district-council/wolverhampton","PARCELFORCE WORLDWIDE","23.76","Michael Brennand Spring Touring 2017","4214","Comms - Postage","16/08/2017"
"Wolverhampton City Council","http://opendatacommunities.org/id/metropolitan-district-council/wolverhampton","REDWINGS LODGE","119.90","CIN/CP Social Work Unit - Area 1","7011","Section 17","16/08/2017"
"Wolverhampton City Council","http://opendatacommunities.org/id/metropolitan-district-council/wolverhampton","CITY DIRECT","40.00","CIN/CP Social Work Unit - Area 1","8299","Section 17","16/08/2017"
"Wolverhampton City Council","http://opendatacommunities.org/id/metropolitan-district-council/wolverhampton","CT WOLVERHAMPTON","7.50","CIN/CP Social Work Unit - Area 2","8398","Section 17","16/08/2017"
"Wolverhampton City Council","http://opendatacommunities.org/id/metropolitan-district-council/wolverhampton","CT WOLVERHAMPTON","75.00","CIN/CP Social Work Unit - Area 2","8398","Section 17","16/08/2017"
"Wolverhampton City Council","http://opendatacommunities.org/id/metropolitan-district-council/wolverhampton","REDWINGS LODGE","23.96","CIN/CP Social Work Unit - Area 1","7011","Section 17","16/08/2017"
"Wolverhampton City Council","http://opendatacommunities.org/id/metropolitan-district-council/wolverhampton","HOME BARGAINS WOLVERHA","4.99","LAC Transitions Team","5251","Client Allowances","16/08/2017"
"Wolverhampton City Council","http://opendatacommunities.org/id/metropolitan-district-council/wolverhampton","ARGOS LTD","21.65","LAC Transitions Team","5310","Client Allowances","16/08/2017"
"Wolverhampton City Council","http://opendatacommunities.org/id/metropolitan-district-council/wolverhampton","ARGOS LTD","49.13","LAC Transitions Team","5310","Client Allowances","16/08/2017"
"Wolverhampton City Council","http://opendatacommunities.org/id/metropolitan-district-council/wolverhampton","WWW.GOV.UK","20.00","Revenues","8999","Services - Professional Fees","16/08/2017"
"Wolverhampton City Council","http://opendatacommunities.org/id/metropolitan-district-council/wolverhampton","CARD FACTORY","7.92","Children & Young People Support Costs","5947","Equipment - Purchase","16/08/2017"
"Wolverhampton City Council","http://opendatacommunities.org/id/metropolitan-district-council/wolverhampton","WWW.WEPRINTLANYARDS.CO","-13.75","Technical Support","5947","Equipment - Purchase","16/08/2017"
"Wolverhampton City Council","http://opendatacommunities.org/id/metropolitan-district-council/wolverhampton","UNTOUCHABLES","31.67","LAC Transitions Team","5231","Client Allowances","16/08/2017"
"Wolverhampton City Council","http://opendatacommunities.org/id/metropolitan-district-council/wolverhampton","HOMEZONE","32.47","LAC Transitions Team","5211","Client Allowances","16/08/2017"
"Wolverhampton City Council","http://opendatacommunities.org/id/metropolitan-district-council/wolverhampton","RENAULT RETAIL","254.25","Fleet Management","7538","Equipment - Purchase","15/08/2017"
"Wolverhampton City Council","http://opendatacommunities.org/id/metropolitan-district-council/wolverhampton","STHSTAFFS D/C' NCL","1155.00","Parks - Ranger Service","7997","Services - Fees and Charges","15/08/2017"
"Wolverhampton City Council","http://opendatacommunities.org/id/metropolitan-district-council/wolverhampton","ARGOS LTD","42.99","Admin & Support","5310","Equipment - Purchase","15/08/2017"
"Wolverhampton City Council","http://opendatacommunities.org/id/metropolitan-district-council/wolverhampton","ARGOS LTD","58.97","Admin & Support","5310","Equipment - Purchase","15/08/2017"
"Wolverhampton City Council","http://opendatacommunities.org/id/metropolitan-district-council/wolverhampton","NAMESCO","34.99","Work Box","4816","Computing - Purchase of Software","15/08/2017"
"Wolverhampton City Council","http://opendatacommunities.org/id/metropolitan-district-council/wolverhampton","LOOP11.COM","158.09","City Direct","7372","Computing - Purchase of Software","15/08/2017"
"Wolverhampton City Council","http://opendatacommunities.org/id/metropolitan-district-council/wolverhampton","ITUNES.COM/BILL","2.07","LAC Education Team (LACE)","5735","Computing - Purchase of Software","15/08/2017"
"Wolverhampton City Council","http://opendatacommunities.org/id/metropolitan-district-council/wolverhampton","ASDA SUPERSTORE","100.00","CIN/CP Social Work Unit - Area 3","5411","Section 17","15/08/2017"
"Wolverhampton City Council","http://opendatacommunities.org/id/metropolitan-district-council/wolverhampton","ASDA SUPERSTORE","200.00","CIN/CP Social Work Unit - Area 3","5411","Section 17","15/08/2017"
"Wolverhampton City Council","http://opendatacommunities.org/id/metropolitan-district-council/wolverhampton","AMFBOWLING.CO.UK","31.85","CIN/CP Social Work Unit - Area 3","7933","Section 17","15/08/2017"
"Wolverhampton City Council","http://opendatacommunities.org/id/metropolitan-district-council/wolverhampton","WM MORRISON 024","26.07","Upper Pendeford Farm Childrens Home","5411","Provisions (Not for resale)","15/08/2017"
"Wolverhampton City Council","http://opendatacommunities.org/id/metropolitan-district-council/wolverhampton","POUNDLAND LTD 1463","5.04","EIP Locality 1","5310","Equipment - Purchase","15/08/2017"
"Wolverhampton City Council","http://opendatacommunities.org/id/metropolitan-district-council/wolverhampton","MIDLAND DOMESTIC","78.00","EIP Locality 2","5722","Grant Payments","15/08/2017"
"Wolverhampton City Council","http://opendatacommunities.org/id/metropolitan-district-council/wolverhampton","MIDLAND DOMESTIC","228.00","EIP Locality 1","5722","Grant Payments","15/08/2017"
"Wolverhampton City Council","http://opendatacommunities.org/id/metropolitan-district-council/wolverhampton","Amazon UK Marketplace","9.41","Global Budgets","5942","Books","15/08/2017"
"Wolverhampton City Council","http://opendatacommunities.org/id/metropolitan-district-council/wolverhampton","PATOSS LTD","145.00","Inclusion Support","8641","Training Expenses","15/08/2017"
"Wolverhampton City Council","http://opendatacommunities.org/id/metropolitan-district-council/wolverhampton","BCC REGISTER OFFIC","25.00","LAC Team","9399","Financial Assistance In Exceptional Circ","15/08/2017"
"Wolverhampton City Council","http://opendatacommunities.org/id/metropolitan-district-council/wolverhampton","ASDA HOME SHOPPING","71.72","Ernest Bold Court","5411","Provisions (Not for resale)","15/08/2017"
"Wolverhampton City Council","http://opendatacommunities.org/id/metropolitan-district-council/wolverhampton","BT PAY BY PHONE","174.39","Learning Disabilities Management","4814","Comms - Telephone Call charges","15/08/2017"
"Wolverhampton City Council","http://opendatacommunities.org/id/metropolitan-district-council/wolverhampton","ASDA SUPERSTORE","63.00","CIN/CP Social Work Unit - Area 7","5411","Section 17","15/08/2017"
"Wolverhampton City Council","http://opendatacommunities.org/id/metropolitan-district-council/wolverhampton","HOMEBASE LTD 103","13.66","Children & Family Contact Services","5211","Materials","15/08/2017"
"Wolverhampton City Council","http://opendatacommunities.org/id/metropolitan-district-council/wolverhampton","ASDA SUPERSTORE","29.00","CIN/CP Social Work Unit - Area 5","5411","No Recourse to Public Funds","15/08/2017"
"Wolverhampton City Council","http://opendatacommunities.org/id/metropolitan-district-council/wolverhampton","ASDA SUPERSTORE","35.00","CIN/CP Social Work Unit - Area 5","5411","No Recourse to Public Funds","15/08/2017"
"Wolverhampton City Council","http://opendatacommunities.org/id/metropolitan-district-council/wolverhampton","Amazon UK Marketplace","42.00","Headstart - Learning Technologies Team","5942","Books","14/08/2017"
"Wolverhampton City Council","http://opendatacommunities.org/id/metropolitan-district-council/wolverhampton","Amazon UK Marketplace","42.00","Headstart - Learning Technologies Team","5942","Books","14/08/2017"
"Wolverhampton City Council","http://opendatacommunities.org/id/metropolitan-district-council/wolverhampton","Amazon UK Marketplace","42.00","Headstart - Learning Technologies Team","5942","Books","14/08/2017"
"Wolverhampton City Council","http://opendatacommunities.org/id/metropolitan-district-council/wolverhampton","Amazon UK Marketplace","354.72","Headstart - Learning Technologies Team","5942","Books","14/08/2017"
"Wolverhampton City Council","http://opendatacommunities.org/id/metropolitan-district-council/wolverhampton","Amazon UK Marketplace","90.56","Headstart - Learning Technologies Team","5942","Books","14/08/2017"
"Wolverhampton City Council","http://opendatacommunities.org/id/metropolitan-district-council/wolverhampton","GOOGLE  ADWS9680351324","50.00","Communications & Marketing - General","5968","Subscriptions","14/08/2017"
"Wolverhampton City Council","http://opendatacommunities.org/id/metropolitan-district-council/wolverhampton","AMAZON.CO.UK","21.76","Caretakers Community Centre","5999","Books","14/08/2017"
"Wolverhampton City Council","http://opendatacommunities.org/id/metropolitan-district-council/wolverhampton","WWW.ARGOS.CO.UK","68.94","LAC Team","5310","Financial Assistance In Exceptional Circ","14/08/2017"
"Wolverhampton City Council","http://opendatacommunities.org/id/metropolitan-district-council/wolverhampton","GRANBY NURSERIES","65.00","LAC Team","8351","Financial Assistance In Exceptional Circ","14/08/2017"
"Wolverhampton City Council","http://opendatacommunities.org/id/metropolitan-district-council/wolverhampton","PP THEWAY YZ","100.00","LAC Team","8398","Financial Assistance In Exceptional Circ","14/08/2017"
"Wolverhampton City Council","http://opendatacommunities.org/id/metropolitan-district-council/wolverhampton","THE QUEEN VICTORIA HOT","35.00","Emergency Duty Team","7011","Services - Supplies & Services to users","14/08/2017"
"Wolverhampton City Council","http://opendatacommunities.org/id/metropolitan-district-council/wolverhampton","WILKO RETAIL LIMIT","35.50","LAC Transitions Team","5722","Client Allowances","14/08/2017"
"Wolverhampton City Council","http://opendatacommunities.org/id/metropolitan-district-council/wolverhampton","Amazon EU","12.97","Archives","5969","Equipment - Purchase","14/08/2017"
"Wolverhampton City Council","http://opendatacommunities.org/id/metropolitan-district-council/wolverhampton","VERIFONE TAXI/PRIVATE","21.12","CIN/CP Social Work Unit - Area 6","4121","Client Transport","14/08/2017"
"Wolverhampton City Council","http://opendatacommunities.org/id/metropolitan-district-council/wolverhampton","HOME BARGAINS","21.08","EIP Locality 1","5251","Grant Payments","14/08/2017"
"Wolverhampton City Council","http://opendatacommunities.org/id/metropolitan-district-council/wolverhampton","WIX.COM","46.57","Technical Support","5968","Subscriptions","14/08/2017"
"Wolverhampton City Council","http://opendatacommunities.org/id/metropolitan-district-council/wolverhampton","PAYPAL  123REGLIMIT","15.98","Technical Support","4816","Computing - Purchase of Software","14/08/2017"
"Wolverhampton City Council","http://opendatacommunities.org/id/metropolitan-district-council/wolverhampton","AMAZON.CO.UK","2.75","Global Budgets","5999","Books","14/08/2017"
"Wolverhampton City Council","http://opendatacommunities.org/id/metropolitan-district-council/wolverhampton","AMAZON UK RETAIL AMAZO","10.98","Global Budgets","5999","Books","14/08/2017"
"Wolverhampton City Council","http://opendatacommunities.org/id/metropolitan-district-council/wolverhampton","Amazon UK Marketplace","7.92","Global Budgets","5942","Books","14/08/2017"
"Wolverhampton City Council","http://opendatacommunities.org/id/metropolitan-district-council/wolverhampton","Amazon UK Marketplace","10.27","Global Budgets","5942","Books","14/08/2017"
"Wolverhampton City Council","http://opendatacommunities.org/id/metropolitan-district-council/wolverhampton","AMAZON.CO.UK","38.94","EIP Locality 3","5999","Equipment - Purchase","14/08/2017"
"Wolverhampton City Council","http://opendatacommunities.org/id/metropolitan-district-council/wolverhampton","ASDA HOME SHOPPING","97.85","Ernest Bold Court","5411","Provisions (Not for resale)","14/08/2017"
"Wolverhampton City Council","http://opendatacommunities.org/id/metropolitan-district-council/wolverhampton","123 REG R/T","15.98","Arts Publicity","5968","Subscriptions","14/08/2017"
"Wolverhampton City Council","http://opendatacommunities.org/id/metropolitan-district-council/wolverhampton","Trainline","93.33","CIN/CP Social Work Unit - Area 4","4112","Public Transport","14/08/2017"
"Wolverhampton City Council","http://opendatacommunities.org/id/metropolitan-district-council/wolverhampton","SAINSBURYS","50.00","Duke Street Bungalows","6011","Public Transport","14/08/2017"
"Wolverhampton City Council","http://opendatacommunities.org/id/metropolitan-district-council/wolverhampton","SAINSBURYS","100.00","Duke Street Bungalows","6011","Financial Assistance In Exceptional Circ","14/08/2017"
"Wolverhampton City Council","http://opendatacommunities.org/id/metropolitan-district-council/wolverhampton","Amazon EU","32.39","Legal Services","5969","Stationery","14/08/2017"
"Wolverhampton City Council","http://opendatacommunities.org/id/metropolitan-district-council/wolverhampton","Amazon UK Marketplace","20.90","Legal Services","5942","Stationery","14/08/2017"
"Wolverhampton City Council","http://opendatacommunities.org/id/metropolitan-district-council/wolverhampton","STATIONERY OFFICE BOOK","21.25","Wholly Owned Company - Operations","5942","Books","14/08/2017"
"Wolverhampton City Council","http://opendatacommunities.org/id/metropolitan-district-council/wolverhampton","NOVOTEL WOLVERHAMPTON","228.00","CIN/CP Social Work Unit - Area 1","7011","Section 17","14/08/2017"
"Wolverhampton City Council","http://opendatacommunities.org/id/metropolitan-district-council/wolverhampton","RIDERS","66.67","LAC Transitions Team","8299","Client Allowances","14/08/2017"
"Wolverhampton City Council","http://opendatacommunities.org/id/metropolitan-district-council/wolverhampton","EAST & WEST AID","170.00","CIN/CP Social Work Unit - Area 3","8398","Computing - Purchase of Hardware","14/08/2017"
"Wolverhampton City Council","http://opendatacommunities.org/id/metropolitan-district-council/wolverhampton","WWW.ARGOS.CO.UK","249.98","EIP Locality 8","5310","Grant Payments","11/08/2017"
"Wolverhampton City Council","http://opendatacommunities.org/id/metropolitan-district-council/wolverhampton","Virgin Trains","218.40","Adoption and Residence Team & Allowances","4112","Public Transport","11/08/2017"
"Wolverhampton City Council","http://opendatacommunities.org/id/metropolitan-district-council/wolverhampton","POST OFFICE COUNTER","875.00","Adoption and Residence Team & Allowances","9402","Comms - Postage","11/08/2017"
"Wolverhampton City Council","http://opendatacommunities.org/id/metropolitan-district-council/wolverhampton","WWW.ALDERCROSS.COM","461.26","Service Director City Environment","7392","Services - Consultants","11/08/2017"
"Wolverhampton City Council","http://opendatacommunities.org/id/metropolitan-district-council/wolverhampton","CUMMINGS BROTHERS LOCK","27.08","Caretakers Community Centre","7399","Equipment - Purchase","11/08/2017"
"Wolverhampton City Council","http://opendatacommunities.org/id/metropolitan-district-council/wolverhampton","WWWBHANGRABLAZECOM","20.00","WV Active Business Support","7997","Services - Professional Fees","11/08/2017"
"Wolverhampton City Council","http://opendatacommunities.org/id/metropolitan-district-council/wolverhampton","WWW.ARGOS.CO.UK","106.95","EIP Locality 5","5310","Grant Payments","11/08/2017"
"Wolverhampton City Council","http://opendatacommunities.org/id/metropolitan-district-council/wolverhampton","Amazon UK Marketplace","13.09","EIP Locality 1","5942","Stationery","11/08/2017"
"Wolverhampton City Council","http://opendatacommunities.org/id/metropolitan-district-council/wolverhampton","Amazon UK Marketplace","31.62","Vulnerable Young Persons Team","5942","Equipment - Purchase","11/08/2017"
"Wolverhampton City Council","http://opendatacommunities.org/id/metropolitan-district-council/wolverhampton","BRTMKT DBA FastSpring","5.05","Technical Support","5818","Subscriptions","11/08/2017"
"Wolverhampton City Council","http://opendatacommunities.org/id/metropolitan-district-council/wolverhampton","AMAZON.CO.UK","9.38","Global Budgets","5999","Books","11/08/2017"
"Wolverhampton City Council","http://opendatacommunities.org/id/metropolitan-district-council/wolverhampton","ASDA SUPERSTORE","46.72","EIP Locality 3","5411","Grant Payments","11/08/2017"
"Wolverhampton City Council","http://opendatacommunities.org/id/metropolitan-district-council/wolverhampton","WOLVERHAMPTON TROPHY C","20.00","Headstart - Learning Technologies Team","5999","Equipment - Purchase","11/08/2017"
"Wolverhampton City Council","http://opendatacommunities.org/id/metropolitan-district-council/wolverhampton","EB  BRIEFING CHILDREN","12.43","Headstart Phase 3","7399","Conference Expenses","11/08/2017"
"Wolverhampton City Council","http://opendatacommunities.org/id/metropolitan-district-council/wolverhampton","Amazon UK Marketplace","67.98","EIP Locality 8","5942","Grant Payments","11/08/2017"
"Wolverhampton City Council","http://opendatacommunities.org/id/metropolitan-district-council/wolverhampton","WWW.ARGOS.CO.UK","156.18","EIP Locality 8","5310","Grant Payments","11/08/2017"
"Wolverhampton City Council","http://opendatacommunities.org/id/metropolitan-district-council/wolverhampton","SAINSBURYS 2040","3.18","Ernest Bold Court","5411","Provisions (Not for resale)","11/08/2017"
"Wolverhampton City Council","http://opendatacommunities.org/id/metropolitan-district-council/wolverhampton","AMAZON UK RETAIL AMAZO","40.35","Inclusion Support","5999","Equipment - Purchase","11/08/2017"
"Wolverhampton City Council","http://opendatacommunities.org/id/metropolitan-district-council/wolverhampton","Wolverhampton Fair Tra","61.56","Civic Centre Catering","5411","Provisions (Not for resale)","11/08/2017"
"Wolverhampton City Council","http://opendatacommunities.org/id/metropolitan-district-council/wolverhampton","GREETINGS HOUSE LTD","90.62","Civic Centre Catering","5999","Equipment - Purchase","11/08/2017"
"Wolverhampton City Council","http://opendatacommunities.org/id/metropolitan-district-council/wolverhampton","COZENS & COLE LTD","157.86","Civic Centre","5251","Equipment - Purchase","11/08/2017"
"Wolverhampton City Council","http://opendatacommunities.org/id/metropolitan-district-council/wolverhampton","B&M RETAIL","124.99","LAC Transitions Team","5310","Client Allowances","11/08/2017"
"Wolverhampton City Council","http://opendatacommunities.org/id/metropolitan-district-council/wolverhampton","HIGHFIELD HOUSE HO","385.00","CIN/CP Social Work Unit - Area 3","7011","Accommodation Costs","11/08/2017"
"Wolverhampton City Council","http://opendatacommunities.org/id/metropolitan-district-council/wolverhampton","VWO.com","46.83","City Direct","7399","Equipment - Purchase","10/08/2017"
"Wolverhampton City Council","http://opendatacommunities.org/id/metropolitan-district-council/wolverhampton","ALDERCROSS LIMITED","123.00","Service Director City Environment","7392","Services - Consultants","10/08/2017"
"Wolverhampton City Council","http://opendatacommunities.org/id/metropolitan-district-council/wolverhampton","AMAZON.CO.UK","17.66","Civic Centre","5999","Equipment - Purchase","10/08/2017"
"Wolverhampton City Council","http://opendatacommunities.org/id/metropolitan-district-council/wolverhampton","Amazon UK Marketplace","8.83","Civic Centre","5942","Equipment - Purchase","10/08/2017"
"Wolverhampton City Council","http://opendatacommunities.org/id/metropolitan-district-council/wolverhampton","CUMMINGS BROTHERS LOCK","30.00","Caretakers Community Centre","7399","R&M - Departmental planned (external)","10/08/2017"
"Wolverhampton City Council","http://opendatacommunities.org/id/metropolitan-district-council/wolverhampton","Virgin Trains","43.20","Fostering Team & Allowances","4112","Public Transport","10/08/2017"
"Wolverhampton City Council","http://opendatacommunities.org/id/metropolitan-district-council/wolverhampton","Amazon Prime","-7.99","Education Business Partnership","5968","Subscriptions","10/08/2017"
"Wolverhampton City Council","http://opendatacommunities.org/id/metropolitan-district-council/wolverhampton","DUDLEY MBC  INTERN","379.50","Education Business Partnership","8999","Subscriptions","10/08/2017"
"Wolverhampton City Council","http://opendatacommunities.org/id/metropolitan-district-council/wolverhampton","WWW.ARGOS.CO.UK","41.81","CIN/CP Social Work Unit - Area 3","5310","Section 17","10/08/2017"
"Wolverhampton City Council","http://opendatacommunities.org/id/metropolitan-district-council/wolverhampton","WM MORRISON 024","200.00","CIN/CP Social Work Unit - Area 2","5411","No Recourse to Public Funds","10/08/2017"
"Wolverhampton City Council","http://opendatacommunities.org/id/metropolitan-district-council/wolverhampton","E01577600000000","30.00","EIP Locality 4","6011","Grant Payments","10/08/2017"
"Wolverhampton City Council","http://opendatacommunities.org/id/metropolitan-district-council/wolverhampton","WM MORRISONS","12.21","Play General","5411","Provisions (Not for resale)","10/08/2017"
"Wolverhampton City Council","http://opendatacommunities.org/id/metropolitan-district-council/wolverhampton","LYNDON HOUSE HOTEL","-41.25","Global Budgets","7011","Services - Supplies & Services to users","10/08/2017"
"Wolverhampton City Council","http://opendatacommunities.org/id/metropolitan-district-council/wolverhampton","WWW.BHCC-INTERNET","11.00","CIN/CP Social Work Unit - Area 4","9399","Services - Fees and Charges","10/08/2017"
"Wolverhampton City Council","http://opendatacommunities.org/id/metropolitan-district-council/wolverhampton","Trainline","162.18","CIN/CP Social Work Unit - Area 4","4112","Public Transport","10/08/2017"
"Wolverhampton City Council","http://opendatacommunities.org/id/metropolitan-district-council/wolverhampton","PO LOW HILL 1592","150.00","EIP Locality 7","6011","Educ Trips, Holidays, Outings, Activity","10/08/2017"
"Wolverhampton City Council","http://opendatacommunities.org/id/metropolitan-district-council/wolverhampton","WWW.ICO.GOV.UK","500.00","Information Governance Team","9399","Subscriptions","10/08/2017"
"Wolverhampton City Council","http://opendatacommunities.org/id/metropolitan-district-council/wolverhampton","SUITES AND BEDS","191.00","CIN/CP Social Work Unit - Area 7","5712","Section 17","10/08/2017"
"Wolverhampton City Council","http://opendatacommunities.org/id/metropolitan-district-council/wolverhampton","WWW.PUBLICPOLICYEXCHAN","236.00","Member Training","7399","Training Expenses","10/08/2017"
"Wolverhampton City Council","http://opendatacommunities.org/id/metropolitan-district-council/wolverhampton","WWW.WESTMINSTER-BRIEFI","245.00","Central Training","8244","Training Expenses","10/08/2017"
"Wolverhampton City Council","http://opendatacommunities.org/id/metropolitan-district-council/wolverhampton","REGISTRARS OFFICE","60.00","Head of Service - CINCP","8299","Services - Professional Fees","10/08/2017"
"Wolverhampton City Council","http://opendatacommunities.org/id/metropolitan-district-council/wolverhampton","Trainline","9.03","Legal Services","4112","Public Transport","10/08/2017"
"Wolverhampton City Council","http://opendatacommunities.org/id/metropolitan-district-council/wolverhampton","REGISTRARS OFFICE","40.00","CIN/CP Social Work Unit - Area 5","8299","Section 17","10/08/2017"
"Wolverhampton City Council","http://opendatacommunities.org/id/metropolitan-district-council/wolverhampton","REGISTRARS OFFICE","41.00","CIN/CP Social Work Unit - Area 5","8299","Section 17","10/08/2017"
"Wolverhampton City Council","http://opendatacommunities.org/id/metropolitan-district-council/wolverhampton","HIQ WOLVERHAMPTON","33.33","Fleet Management","5532","Services - Professional Fees","10/08/2017"
"Wolverhampton City Council","http://opendatacommunities.org/id/metropolitan-district-council/wolverhampton","ARGOS RETAIL GROUP","39.99","CIN/CP Social Work Unit - Area 4","5310","No Recourse to Public Funds","10/08/2017"
"Wolverhampton City Council","http://opendatacommunities.org/id/metropolitan-district-council/wolverhampton","REGISTRARS OFFICE","60.00","Adoption and Residence Team & Allowances","8299","Services - Fees and Charges","10/08/2017"
"Wolverhampton City Council","http://opendatacommunities.org/id/metropolitan-district-council/wolverhampton","HI PORTSMOUTH - RE","142.08","Adoption and Residence Team & Allowances","7011","Accommodation Costs","10/08/2017"
"Wolverhampton City Council","http://opendatacommunities.org/id/metropolitan-district-council/wolverhampton","POST OFFICE COUNTER","6.45","Adoption and Residence Team & Allowances","9402","Comms - Postage","10/08/2017"
"Wolverhampton City Council","http://opendatacommunities.org/id/metropolitan-district-council/wolverhampton","Trainline","481.64","Service Director City Economy","4112","Public Transport","09/08/2017"
"Wolverhampton City Council","http://opendatacommunities.org/id/metropolitan-district-council/wolverhampton","Amazon UK Marketplace","105.96","Civic Centre","5942","Equipment - Purchase","09/08/2017"
"Wolverhampton City Council","http://opendatacommunities.org/id/metropolitan-district-council/wolverhampton","HOLIDAY INNS","204.00","LAC Team","3501","Financial Assistance In Exceptional Circ","09/08/2017"
"Wolverhampton City Council","http://opendatacommunities.org/id/metropolitan-district-council/wolverhampton","THE QUEEN VICTORIA HOT","235.00","Emergency Duty Team","7011","Services - Supplies & Services to users","09/08/2017"
"Wolverhampton City Council","http://opendatacommunities.org/id/metropolitan-district-council/wolverhampton","ASDA HOME SHOPPING","-0.32","Upper Pendeford Farm Childrens Home","5411","Provisions (Not for resale)","09/08/2017"
"Wolverhampton City Council","http://opendatacommunities.org/id/metropolitan-district-council/wolverhampton","ASDA HOME SHOPPING","217.89","Upper Pendeford Farm Childrens Home","5411","Provisions (Not for resale)","09/08/2017"
"Wolverhampton City Council","http://opendatacommunities.org/id/metropolitan-district-council/wolverhampton","MYHERMES.CO.UK","3.41","Telecare","4214","Comms - Postage","09/08/2017"
"Wolverhampton City Council","http://opendatacommunities.org/id/metropolitan-district-council/wolverhampton","E00783400000000","20.00","EIP Locality 1","6011","Educ Trips, Holidays, Outings, Activity","09/08/2017"
"Wolverhampton City Council","http://opendatacommunities.org/id/metropolitan-district-council/wolverhampton","AppYourself 8A8394C33F","93.54","Technical Support","7372","Computing - Purchase of Software","09/08/2017"
"Wolverhampton City Council","http://opendatacommunities.org/id/metropolitan-district-council/wolverhampton","BLACK COUNTRY CHAMBER","50.00","Communications & Marketing - General","7399","Equipment - Purchase","09/08/2017"
"Wolverhampton City Council","http://opendatacommunities.org/id/metropolitan-district-council/wolverhampton","ASDA SUPERSTORE","14.41","Mayoral Expenses","5411","Hospitality","09/08/2017"
"Wolverhampton City Council","http://opendatacommunities.org/id/metropolitan-district-council/wolverhampton","UNTOUCHABLES","22.50","Cemeteries","5231","Materials","09/08/2017"
"Wolverhampton City Council","http://opendatacommunities.org/id/metropolitan-district-council/wolverhampton","ASDA HOME SHOPPING","34.98","EIP Locality 4","5411","Grant Payments","09/08/2017"
"Wolverhampton City Council","http://opendatacommunities.org/id/metropolitan-district-council/wolverhampton","ARGOS RETAIL GROUP","12.98","EIP Locality 6","5310","Grant Payments","09/08/2017"
"Wolverhampton City Council","http://opendatacommunities.org/id/metropolitan-district-council/wolverhampton","GOOGLE  Google Play","19.87","Technical Support","7399","Equipment - Purchase","09/08/2017"
"Wolverhampton City Council","http://opendatacommunities.org/id/metropolitan-district-council/wolverhampton","ARGOS RETAIL GROUP","96.93","EIP Locality 3","5310","Grant Payments","09/08/2017"
"Wolverhampton City Council","http://opendatacommunities.org/id/metropolitan-district-council/wolverhampton","WAITROSE 696","6.81","EIP Locality 3","5411","Grant Payments","09/08/2017"
"Wolverhampton City Council","http://opendatacommunities.org/id/metropolitan-district-council/wolverhampton","POST OFFICE COUNTER","31.20","EIP Locality 3","9402","Comms - Postage","09/08/2017"
"Wolverhampton City Council","http://opendatacommunities.org/id/metropolitan-district-council/wolverhampton","WWW.TORBAY.GOV.UK","11.00","CIN/CP Social Work Unit - Area 4","9399","Services - Fees and Charges","09/08/2017"
"Wolverhampton City Council","http://opendatacommunities.org/id/metropolitan-district-council/wolverhampton","CO-OPERATIVE TRAVE","738.00","Upper Pendeford Farm Childrens Home","4722","Educ Trips, Holidays, Outings, Activity","09/08/2017"
"Wolverhampton City Council","http://opendatacommunities.org/id/metropolitan-district-council/wolverhampton","ASDA SUPERSTORE","12.00","CIN/CP Social Work Unit - Area 5","5411","No Recourse to Public Funds","09/08/2017"
"Wolverhampton City Council","http://opendatacommunities.org/id/metropolitan-district-council/wolverhampton","ASDA SUPERSTORE","13.11","CIN/CP Social Work Unit - Area 5","5411","No Recourse to Public Funds","09/08/2017"
"Wolverhampton City Council","http://opendatacommunities.org/id/metropolitan-district-council/wolverhampton","ASDA SUPERSTORE","15.50","CIN/CP Social Work Unit - Area 5","5411","No Recourse to Public Funds","09/08/2017"
"Wolverhampton City Council","http://opendatacommunities.org/id/metropolitan-district-council/wolverhampton","HIRE STATION-LTD","78.00","Fountain Maintenance","7394","Equipment - Purchase","09/08/2017"
"Wolverhampton City Council","http://opendatacommunities.org/id/metropolitan-district-council/wolverhampton","RIDERS","20.83","LAC Transitions Team","8299","Client Allowances","09/08/2017"
"Wolverhampton City Council","http://opendatacommunities.org/id/metropolitan-district-council/wolverhampton","VERIFONE TAXI/PRIVATE","12.65","CIN/CP Social Work Unit - Area 6","4121","Section 17","09/08/2017"
"Wolverhampton City Council","http://opendatacommunities.org/id/metropolitan-district-council/wolverhampton","BARCLAYS BANK PLC","250.00","CIN/CP Social Work Unit - Area 6","6011","Financial Assistance In Exceptional Circ","09/08/2017"
"Wolverhampton City Council","http://opendatacommunities.org/id/metropolitan-district-council/wolverhampton","WWW.PARTYPACKS.CO.UK","47.20","Headstart - Young People Engagement","5399","Materials","08/08/2017"
"Wolverhampton City Council","http://opendatacommunities.org/id/metropolitan-district-council/wolverhampton","Amazon UK Marketplace","154.10","Headstart - Young People Engagement","5942","Equipment - Purchase","08/08/2017"
"Wolverhampton City Council","http://opendatacommunities.org/id/metropolitan-district-council/wolverhampton","Amazon UK Marketplace","14.98","EIP Locality 1","5942","Equipment - Purchase","08/08/2017"
"Wolverhampton City Council","http://opendatacommunities.org/id/metropolitan-district-council/wolverhampton","E01510300000000","200.00","MASH","6011","Financial Assistance In Exceptional Circ","08/08/2017"
"Wolverhampton City Council","http://opendatacommunities.org/id/metropolitan-district-council/wolverhampton","Amazon UK Marketplace","59.97","Civic Centre","5942","Equipment - Health and Safety","08/08/2017"
"Wolverhampton City Council","http://opendatacommunities.org/id/metropolitan-district-council/wolverhampton","Wix.com","93.13","Technical Support","5817","Computing - Purchase of Software","08/08/2017"
"Wolverhampton City Council","http://opendatacommunities.org/id/metropolitan-district-council/wolverhampton","Amazon UK Marketplace","15.22","Global Budgets","5942","Books","08/08/2017"
"Wolverhampton City Council","http://opendatacommunities.org/id/metropolitan-district-council/wolverhampton","E01577600000000","20.00","EIP Locality 4","6011","Financial Assistance In Exceptional Circ","08/08/2017"
"Wolverhampton City Council","http://opendatacommunities.org/id/metropolitan-district-council/wolverhampton","MAN UTD TICKET OFF","30.00","LAC Team","7997","Financial Assistance In Exceptional Circ","08/08/2017"
"Wolverhampton City Council","http://opendatacommunities.org/id/metropolitan-district-council/wolverhampton","ASDA HOME SHOPPING","79.78","Ernest Bold Court","5411","Provisions (Not for resale)","08/08/2017"
"Wolverhampton City Council","http://opendatacommunities.org/id/metropolitan-district-council/wolverhampton","ARGOS DIRECT","86.95","CIN/CP Social Work Unit - Area 4","5310","Equipment - Purchase","08/08/2017"
"Wolverhampton City Council","http://opendatacommunities.org/id/metropolitan-district-council/wolverhampton","REGISTRARS OFFICE","30.00","Head of Service - CINCP","8299","Services - Professional Fees","08/08/2017"
"Wolverhampton City Council","http://opendatacommunities.org/id/metropolitan-district-council/wolverhampton","TESCO PFS 2185","2.00","Mayoral Expenses","5541","Hospitality","08/08/2017"
"Wolverhampton City Council","http://opendatacommunities.org/id/metropolitan-district-council/wolverhampton","PP THEWAY YZ","152.00","CIN/CP Social Work Unit - Area 5","8398","Section 17","08/08/2017"
"Wolverhampton City Council","http://opendatacommunities.org/id/metropolitan-district-council/wolverhampton","PP THEWAY YZ","8.00","CIN/CP Social Work Unit - Area 5","8398","Educ Trips, Holidays, Outings, Activity","08/08/2017"
"Wolverhampton City Council","http://opendatacommunities.org/id/metropolitan-district-council/wolverhampton","CAPITAL APPLIANCE CTR","372.50","LAC Transitions Team","5722","Client Allowances","08/08/2017"
"Wolverhampton City Council","http://opendatacommunities.org/id/metropolitan-district-council/wolverhampton","Virgin Trains","55.20","Adoption and Residence Team & Allowances","4112","Public Transport","08/08/2017"
"Wolverhampton City Council","http://opendatacommunities.org/id/metropolitan-district-council/wolverhampton","BARCLAYS BANK PLC","250.00","CIN/CP Social Work Unit - Area 6","6011","Section 17","08/08/2017"
"Wolverhampton City Council","http://opendatacommunities.org/id/metropolitan-district-council/wolverhampton","LOYD WEDNESFIELD WOLVE","110.00","EIP Locality 7","6011","Educ Trips, Holidays, Outings, Activity","08/08/2017"
"Wolverhampton City Council","http://opendatacommunities.org/id/metropolitan-district-council/wolverhampton","Amazon UK Marketplace","12.49","Headstart - Young People Engagement","5942","Equipment - Purchase","08/08/2017"
"Wolverhampton City Council","http://opendatacommunities.org/id/metropolitan-district-council/wolverhampton","Amazon UK Marketplace","20.00","Headstart - Young People Engagement","5942","Equipment - Purchase","08/08/2017"
"Wolverhampton City Council","http://opendatacommunities.org/id/metropolitan-district-council/wolverhampton","Amazon UK Marketplace","46.68","EIP Locality 8","5942","Equipment - Purchase","08/08/2017"
"Wolverhampton City Council","http://opendatacommunities.org/id/metropolitan-district-council/wolverhampton","TESCO STORES 6161","198.82","LAC Education Team (LACE)","5411","Provisions (Not for resale)","08/08/2017"
"Wolverhampton City Council","http://opendatacommunities.org/id/metropolitan-district-council/wolverhampton","Amazon UK Marketplace","8.83","Civic Centre","5942","Equipment - Purchase","08/08/2017"
"Wolverhampton City Council","http://opendatacommunities.org/id/metropolitan-district-council/wolverhampton","WWW.ARGOS.CO.UK","53.94","CIN/CP Social Work Unit - Area 3","5310","Section 17","08/08/2017"
"Wolverhampton City Council","http://opendatacommunities.org/id/metropolitan-district-council/wolverhampton","CARVER/WOLVERHAMPTON/L","8.49","Culwell Street Depot","5211","R&M - Departmental planned (external)","08/08/2017"
"Wolverhampton City Council","http://opendatacommunities.org/id/metropolitan-district-council/wolverhampton","Trainline","56.52","CIN/CP Social Work Unit - Area 8","4112","Public Transport","08/08/2017"
"Wolverhampton City Council","http://opendatacommunities.org/id/metropolitan-district-council/wolverhampton","Trainline","128.01","CIN/CP Social Work Unit - Area 8","4112","Public Transport","08/08/2017"
"Wolverhampton City Council","http://opendatacommunities.org/id/metropolitan-district-council/wolverhampton","Amazon UK Marketplace","24.98","EIP Locality 1","5942","Educ Trips, Holidays, Outings, Activity","08/08/2017"
"Wolverhampton City Council","http://opendatacommunities.org/id/metropolitan-district-council/wolverhampton","ARGOS RETAIL GROUP","92.43","EIP Locality 2","5310","Grant Payments","08/08/2017"
"Wolverhampton City Council","http://opendatacommunities.org/id/metropolitan-district-council/wolverhampton","CT WOLVERHAMPTON","440.00","EIP Locality 2","8398","Grant Payments","08/08/2017"
"Wolverhampton City Council","http://opendatacommunities.org/id/metropolitan-district-council/wolverhampton","IKEA LIMITED","49.17","LAC Transitions Team","5712","Client Allowances","07/08/2017"
"Wolverhampton City Council","http://opendatacommunities.org/id/metropolitan-district-council/wolverhampton","AMAZON.CO.UK","635.76","Civic Centre","5999","Equipment - Purchase","07/08/2017"
"Wolverhampton City Council","http://opendatacommunities.org/id/metropolitan-district-council/wolverhampton","AMAZON.CO.UK","432.67","Civic Centre","5999","Equipment - Purchase","07/08/2017"
"Wolverhampton City Council","http://opendatacommunities.org/id/metropolitan-district-council/wolverhampton","Amazon UK Marketplace","626.93","Civic Centre","5942","Equipment - Purchase","07/08/2017"
"Wolverhampton City Council","http://opendatacommunities.org/id/metropolitan-district-council/wolverhampton","PAYPAL  NEXTDAYCOMP","115.62","Strategic ICTS (ICT Serv Budget)","5732","Equipment - Purchase","07/08/2017"
"Wolverhampton City Council","http://opendatacommunities.org/id/metropolitan-district-council/wolverhampton","JOHNSTONES DEC CENTRE","52.41","Parkfields Centre","5231","Materials","07/08/2017"
"Wolverhampton City Council","http://opendatacommunities.org/id/metropolitan-district-council/wolverhampton","ODEON/BOOKIT","20.25","LAC Team","7832","Financial Assistance In Exceptional Circ","07/08/2017"
"Wolverhampton City Council","http://opendatacommunities.org/id/metropolitan-district-council/wolverhampton","MAN UTD TICKET OFF","30.00","LAC Team","7997","Financial Assistance In Exceptional Circ","07/08/2017"
"Wolverhampton City Council","http://opendatacommunities.org/id/metropolitan-district-council/wolverhampton","WWW.ARGOS.CO.UK","159.99","EIP Locality 5","5310","Equipment - Purchase","07/08/2017"
"Wolverhampton City Council","http://opendatacommunities.org/id/metropolitan-district-council/wolverhampton","VERIFONE TAXI/PRIVATE","11.00","CIN/CP Social Work Unit - Area 6","4121","Section 17","07/08/2017"
"Wolverhampton City Council","http://opendatacommunities.org/id/metropolitan-district-council/wolverhampton","ASDA SUPERSTORE","85.50","CIN/CP Social Work Unit - Area 5","5411","No Recourse to Public Funds","07/08/2017"
"Wolverhampton City Council","http://opendatacommunities.org/id/metropolitan-district-council/wolverhampton","RON FLOWERS SPORTS","139.26","CIN/CP Social Work Unit - Area 5","5941","Equipment - Purchase","07/08/2017"
"Wolverhampton City Council","http://opendatacommunities.org/id/metropolitan-district-council/wolverhampton","AMAZON UK PRIME AMZN.C","79.00","Civic Halls Non Direct Management A/C","5968","Subscriptions","07/08/2017"
"Wolverhampton City Council","http://opendatacommunities.org/id/metropolitan-district-council/wolverhampton","PAYPAL  ANOVATECHNO","975.00","Arts Publicity","5732","Subscriptions","07/08/2017"
"Wolverhampton City Council","http://opendatacommunities.org/id/metropolitan-district-council/wolverhampton","HOMEBASE LTD 103","11.36","Car Parks Operational Staff","5211","Equipment - Purchase","07/08/2017"
"Wolverhampton City Council","http://opendatacommunities.org/id/metropolitan-district-council/wolverhampton","HOLIDAY INN EX NUNEATN","95.00","Fostering Team & Allowances","7011","Services - Supplies & Services to users","07/08/2017"
"Wolverhampton City Council","http://opendatacommunities.org/id/metropolitan-district-council/wolverhampton","CONNAUGHT PODIATRY","40.00","Fleet Management","8049","Medical Fees","07/08/2017"
"Wolverhampton City Council","http://opendatacommunities.org/id/metropolitan-district-council/wolverhampton","Amazon UK Marketplace","3.90","Culwell Street Depot","5942","Books","07/08/2017"
"Wolverhampton City Council","http://opendatacommunities.org/id/metropolitan-district-council/wolverhampton","Amazon UK Marketplace","5.49","Parks - Ranger Service","5942","Equipment - Purchase","07/08/2017"
"Wolverhampton City Council","http://opendatacommunities.org/id/metropolitan-district-council/wolverhampton","Virgin Trains","244.00","LAC Team","4112","Public Transport","07/08/2017"
"Wolverhampton City Council","http://opendatacommunities.org/id/metropolitan-district-council/wolverhampton","VISTAPR VistaPrint.com","337.21","Electoral Registration","2741","Equipment - Purchase","07/08/2017"
"Wolverhampton City Council","http://opendatacommunities.org/id/metropolitan-district-council/wolverhampton","WWW.THERANGE.CO.UK","62.45","LAC Transitions Team","5712","Client Allowances","07/08/2017"
"Wolverhampton City Council","http://opendatacommunities.org/id/metropolitan-district-council/wolverhampton","WWW.VIKING-DIRECT.CO.U","97.51","Archives","5111","Stationery","07/08/2017"
"Wolverhampton City Council","http://opendatacommunities.org/id/metropolitan-district-council/wolverhampton","Amazon UK Marketplace","20.00","Archives","5942","Equipment - Purchase","07/08/2017"
"Wolverhampton City Council","http://opendatacommunities.org/id/metropolitan-district-council/wolverhampton","Amazon Prime","7.99","Private Sector Housing","5968","Subscriptions","07/08/2017"
"Wolverhampton City Council","http://opendatacommunities.org/id/metropolitan-district-council/wolverhampton","AMAZON.CO.UK","28.32","Vulnerable Young Persons Team","5999","Equipment - Purchase","07/08/2017"
"Wolverhampton City Council","http://opendatacommunities.org/id/metropolitan-district-council/wolverhampton","TFM FARM & COUNTRY SUP","44.40","Northicote Farm","5399","Equipment - Purchase","07/08/2017"
"Wolverhampton City Council","http://opendatacommunities.org/id/metropolitan-district-council/wolverhampton","TFM FARM & COUNTRY SUP","63.45","Northicote Farm","5399","Equipment - Purchase","07/08/2017"
"Wolverhampton City Council","http://opendatacommunities.org/id/metropolitan-district-council/wolverhampton","BIRMINGHAM BIKE AGENCY","25.00","LAC Transitions Team","8299","Client Allowances","07/08/2017"
"Wolverhampton City Council","http://opendatacommunities.org/id/metropolitan-district-council/wolverhampton","FACEBK EKVCACAB82","3.43","Communications & Marketing - General","7311","Marketing \ Non-staff advertising","07/08/2017"
"Wolverhampton City Council","http://opendatacommunities.org/id/metropolitan-district-council/wolverhampton","BRITISHFOODSHOP","104.07","Headstart Phase 3","5499","Catering","07/08/2017"
"Wolverhampton City Council","http://opendatacommunities.org/id/metropolitan-district-council/wolverhampton","HOBBY CRAFT LTD","37.37","Headstart - Young People Engagement","5970","Materials","07/08/2017"
"Wolverhampton City Council","http://opendatacommunities.org/id/metropolitan-district-council/wolverhampton","THE POST OFFICE","11.05","Supporting Local Artists","9402","Comms - Postage","07/08/2017"
"Wolverhampton City Council","http://opendatacommunities.org/id/metropolitan-district-council/wolverhampton","BOOKWHEN","9.00","Craftplay","7372","Computing - Purchase of Software","07/08/2017"
"Wolverhampton City Council","http://opendatacommunities.org/id/metropolitan-district-council/wolverhampton","THE POST OFFICE","55.75","LAC Team","9402","Financial Assistance In Exceptional Circ","07/08/2017"
"Wolverhampton City Council","http://opendatacommunities.org/id/metropolitan-district-council/wolverhampton","ASDA HOME SHOPPING","-0.70","Ernest Bold Court","5411","Provisions (Not for resale)","07/08/2017"
"Wolverhampton City Council","http://opendatacommunities.org/id/metropolitan-district-council/wolverhampton","ASDA HOME SHOPPING","94.17","Ernest Bold Court","5411","Provisions (Not for resale)","07/08/2017"
"Wolverhampton City Council","http://opendatacommunities.org/id/metropolitan-district-council/wolverhampton","SCREWFIX DIRECT","264.14","Maintenance of Exhibits","5211","Equipment - Purchase","04/08/2017"
"Wolverhampton City Council","http://opendatacommunities.org/id/metropolitan-district-council/wolverhampton","Amazon UK Marketplace","5.75","Culwell Street Depot","5942","Books","04/08/2017"
"Wolverhampton City Council","http://opendatacommunities.org/id/metropolitan-district-council/wolverhampton","SCHOOLUNIFORMSPECIALIS","45.50","EIP Locality 5","5137","Grant Payments","04/08/2017"
"Wolverhampton City Council","http://opendatacommunities.org/id/metropolitan-district-council/wolverhampton","000002200500000","250.00","CIN/CP Social Work Unit - Area 6","6011","Financial Assistance In Exceptional Circ","04/08/2017"
"Wolverhampton City Council","http://opendatacommunities.org/id/metropolitan-district-council/wolverhampton","CINEWORLD","29.00","CIN/CP Social Work Unit - Area 3","7922","Educ Trips, Holidays, Outings, Activity","04/08/2017"
"Wolverhampton City Council","http://opendatacommunities.org/id/metropolitan-district-council/wolverhampton","CUMMINGS BROTHERS LOCK","6.25","Assessment Team (East)","7399","Equipment - Purchase","04/08/2017"
"Wolverhampton City Council","http://opendatacommunities.org/id/metropolitan-district-council/wolverhampton","E01353600000000","100.00","Childrens with Disabilities Team","6011","No Recourse to Public Funds","04/08/2017"
"Wolverhampton City Council","http://opendatacommunities.org/id/metropolitan-district-council/wolverhampton","E01353600000000","250.00","Childrens with Disabilities Team","6011","No Recourse to Public Funds","04/08/2017"
"Wolverhampton City Council","http://opendatacommunities.org/id/metropolitan-district-council/wolverhampton","Amazon UK Marketplace","20.29","EIP Locality 8","5942","Stationery","04/08/2017"
"Wolverhampton City Council","http://opendatacommunities.org/id/metropolitan-district-council/wolverhampton","constructionsupport","49.99","Strategic ICTS (ICT Serv Budget)","8299","Training Expenses","04/08/2017"
"Wolverhampton City Council","http://opendatacommunities.org/id/metropolitan-district-council/wolverhampton","E01510300000000","83.33","Emergency Duty Team","6011","Financial Assistance In Exceptional Circ","04/08/2017"
"Wolverhampton City Council","http://opendatacommunities.org/id/metropolitan-district-council/wolverhampton","S & B WASTE","169.50","Central Costs","4900","Grounds Maintenance - Non Contract","04/08/2017"
"Wolverhampton City Council","http://opendatacommunities.org/id/metropolitan-district-council/wolverhampton","WILKO.COM","115.00","MASH","5722","Equipment - Purchase","04/08/2017"
"Wolverhampton City Council","http://opendatacommunities.org/id/metropolitan-district-council/wolverhampton","SCREWFIX DIRECT","169.21","Telecare","5211","Materials","04/08/2017"
"Wolverhampton City Council","http://opendatacommunities.org/id/metropolitan-district-council/wolverhampton","JOLLY CATERING","105.00","MASH","5811","Catering","04/08/2017"
"Wolverhampton City Council","http://opendatacommunities.org/id/metropolitan-district-council/wolverhampton","ICELAND","7.67","Commissioning Disabilities","5411","Provisions (Not for resale)","04/08/2017"
"Wolverhampton City Council","http://opendatacommunities.org/id/metropolitan-district-council/wolverhampton","Amazon UK Marketplace","9.93","Global Budgets","5942","Books","04/08/2017"
"Wolverhampton City Council","http://opendatacommunities.org/id/metropolitan-district-council/wolverhampton","SAINSBURYS SACAT 2040","10.05","Ernest Bold Court","5411","Provisions (Not for resale)","04/08/2017"
"Wolverhampton City Council","http://opendatacommunities.org/id/metropolitan-district-council/wolverhampton","Amazon UK Marketplace","34.50","Environmental Health - Pub Prot - Gen","5942","Equipment - Purchase","04/08/2017"
"Wolverhampton City Council","http://opendatacommunities.org/id/metropolitan-district-council/wolverhampton","GO CARZ","4.09","Legal Services","4121","Public Transport","04/08/2017"
"Wolverhampton City Council","http://opendatacommunities.org/id/metropolitan-district-council/wolverhampton","GO CARZ","4.20","Legal Services","4121","Public Transport","04/08/2017"
"Wolverhampton City Council","http://opendatacommunities.org/id/metropolitan-district-council/wolverhampton","WWW.GOV.UK","40.00","Legal Services","8999","Services - Professional Fees","04/08/2017"
"Wolverhampton City Council","http://opendatacommunities.org/id/metropolitan-district-council/wolverhampton","TESCO STORES 5397","17.79","EIP Locality 1","5411","Provisions (Not for resale)","03/08/2017"
"Wolverhampton City Council","http://opendatacommunities.org/id/metropolitan-district-council/wolverhampton","SCREWFIX DIRECT LT","26.97","Cleaning of Buildings - General","5211","Materials","03/08/2017"
"Wolverhampton City Council","http://opendatacommunities.org/id/metropolitan-district-council/wolverhampton","B & Q 1243","28.80","Cleaning of Buildings - General","5211","Materials","03/08/2017"
"Wolverhampton City Council","http://opendatacommunities.org/id/metropolitan-district-council/wolverhampton","Amazon UK Marketplace","6.44","Global Budgets","5942","Books","03/08/2017"
"Wolverhampton City Council","http://opendatacommunities.org/id/metropolitan-district-council/wolverhampton","PAYPAL  RUBBERPLANT","2.68","Licensing - General","5999","Equipment - Purchase","03/08/2017"
"Wolverhampton City Council","http://opendatacommunities.org/id/metropolitan-district-council/wolverhampton","PAYPAL  THEBEAUTYBO","7.96","Licensing - General","5970","Materials","03/08/2017"
"Wolverhampton City Council","http://opendatacommunities.org/id/metropolitan-district-council/wolverhampton","PAYPAL  LUDANDAN","2.99","Licensing - General","5732","Equipment - Purchase","03/08/2017"
"Wolverhampton City Council","http://opendatacommunities.org/id/metropolitan-district-council/wolverhampton","PAYPAL  UNIQUELITTL","7.95","Licensing - General","5331","Equipment - Purchase","03/08/2017"
"Wolverhampton City Council","http://opendatacommunities.org/id/metropolitan-district-council/wolverhampton","PAYPAL  PURPLEKACTU","7.99","Licensing - General","5331","Equipment - Purchase","03/08/2017"
"Wolverhampton City Council","http://opendatacommunities.org/id/metropolitan-district-council/wolverhampton","SUITES AND BEDS","41.67","LAC Transitions Team","5712","Client Allowances","03/08/2017"
"Wolverhampton City Council","http://opendatacommunities.org/id/metropolitan-district-council/wolverhampton","WWW.WMCA.CO.UK","1301.52","Travel Scratch Cards & Rail Warrants","4112","Public Transport","03/08/2017"
"Wolverhampton City Council","http://opendatacommunities.org/id/metropolitan-district-council/wolverhampton","UNTOUCHABLES","5.58","Meals on Wheels","5231","Materials","03/08/2017"
"Wolverhampton City Council","http://opendatacommunities.org/id/metropolitan-district-council/wolverhampton","WWW.WMCA.CO.UK","54.50","IMPACT","9399","Services - Fees and Charges","03/08/2017"
"Wolverhampton City Council","http://opendatacommunities.org/id/metropolitan-district-council/wolverhampton","CUMMINGS BROTHERS LOCK","8.00","IMPACT","7399","Equipment - Purchase","03/08/2017"
"Wolverhampton City Council","http://opendatacommunities.org/id/metropolitan-district-council/wolverhampton","THE POST OFFICE","82.25","IMPACT","9402","Comms - Postage","03/08/2017"
"Wolverhampton City Council","http://opendatacommunities.org/id/metropolitan-district-council/wolverhampton","Amazon UK Marketplace","7.65","EIP Locality 8","5942","Equipment - Hire","03/08/2017"
"Wolverhampton City Council","http://opendatacommunities.org/id/metropolitan-district-council/wolverhampton","B&M RETAIL","85.52","LAC Transitions Team","5310","Client Allowances","03/08/2017"
"Wolverhampton City Council","http://opendatacommunities.org/id/metropolitan-district-council/wolverhampton","ARGOS LTD","90.95","LAC Transitions Team","5310","Client Allowances","03/08/2017"
"Wolverhampton City Council","http://opendatacommunities.org/id/metropolitan-district-council/wolverhampton","POUNDSTRETCHER 703","14.98","LAC Transitions Team","5714","Client Allowances","03/08/2017"
"Wolverhampton City Council","http://opendatacommunities.org/id/metropolitan-district-council/wolverhampton","CROWN DECORATING CENTR","20.32","Public Conveniences","1520","R&M - Departmental response (Internal)","03/08/2017"
"Wolverhampton City Council","http://opendatacommunities.org/id/metropolitan-district-council/wolverhampton","CROWN DECORATING CENTR","71.98","Public Conveniences","1520","R&M - Departmental response (Internal)","03/08/2017"
"Wolverhampton City Council","http://opendatacommunities.org/id/metropolitan-district-council/wolverhampton","PREMIER INN","339.96","Training & Development","3811","Training Expenses","03/08/2017"
"Wolverhampton City Council","http://opendatacommunities.org/id/metropolitan-district-council/wolverhampton","AMERISUITES","115.00","LAC Team","3514","Services - Supplies & Services to users","03/08/2017"
"Wolverhampton City Council","http://opendatacommunities.org/id/metropolitan-district-council/wolverhampton","PP THEWAY YZ","80.00","LAC Team","8398","Financial Assistance In Exceptional Circ","03/08/2017"
"Wolverhampton City Council","http://opendatacommunities.org/id/metropolitan-district-council/wolverhampton","Virgin Trains","60.30","LAC Team","4112","Public Transport","03/08/2017"
"Wolverhampton City Council","http://opendatacommunities.org/id/metropolitan-district-council/wolverhampton","THE POST OFFICE","9.75","LAC Team","9402","Financial Assistance In Exceptional Circ","03/08/2017"
"Wolverhampton City Council","http://opendatacommunities.org/id/metropolitan-district-council/wolverhampton","WOLVERHAMPTON CC","5.42","Headstart Phase 3","7523","Parking Fees","03/08/2017"
"Wolverhampton City Council","http://opendatacommunities.org/id/metropolitan-district-council/wolverhampton","SAINSBURYS (2340)","2.50","Connexions Contract","5411","Provisions (Not for resale)","03/08/2017"
"Wolverhampton City Council","http://opendatacommunities.org/id/metropolitan-district-council/wolverhampton","PREMIER INN","87.00","CIN/CP Social Work Unit - Area 7","3811","Section 17","03/08/2017"
"Wolverhampton City Council","http://opendatacommunities.org/id/metropolitan-district-council/wolverhampton","SCHOOLUNIFORMSPECIALIS","56.50","CIN/CP Social Work Unit - Area 5","5137","Clothing / Uniforms","03/08/2017"
"Wolverhampton City Council","http://opendatacommunities.org/id/metropolitan-district-council/wolverhampton","NATIONAL EXPRESS","22.60","Adult Services - West","4131","Public Transport","03/08/2017"
"Wolverhampton City Council","http://opendatacommunities.org/id/metropolitan-district-council/wolverhampton","VERIFONE TAXI/PRIVATE","21.12","CIN/CP Social Work Unit - Area 6","4121","Section 17","03/08/2017"
"Wolverhampton City Council","http://opendatacommunities.org/id/metropolitan-district-council/wolverhampton","PO LOW HILL 1592","200.00","EIP Locality 7","6011","Grant Payments","03/08/2017"
"Wolverhampton City Council","http://opendatacommunities.org/id/metropolitan-district-council/wolverhampton","Amazon UK Marketplace","29.84","EIP Locality 7","5942","Educ Trips, Holidays, Outings, Activity","03/08/2017"
"Wolverhampton City Council","http://opendatacommunities.org/id/metropolitan-district-council/wolverhampton","Amazon UK Marketplace","6.89","EIP Locality 7","5942","Educ Trips, Holidays, Outings, Activity","03/08/2017"
"Wolverhampton City Council","http://opendatacommunities.org/id/metropolitan-district-council/wolverhampton","LION PICTURE FRAMING S","174.80","Technical Material","5999","Equipment - Purchase","03/08/2017"
"Wolverhampton City Council","http://opendatacommunities.org/id/metropolitan-district-council/wolverhampton","BRITANNIA","268.00","CIN/CP Social Work Unit - Area 3","7011","Services - Supplies & Services to users","03/08/2017"
"Wolverhampton City Council","http://opendatacommunities.org/id/metropolitan-district-council/wolverhampton","WWW.OAKLANDSWOLVERHAMP","275.00","CIN/CP Social Work Unit - Area 3","7011","Services - Supplies & Services to users","03/08/2017"
"Wolverhampton City Council","http://opendatacommunities.org/id/metropolitan-district-council/wolverhampton","HIGHFIELD HOUSE HO","385.00","CIN/CP Social Work Unit - Area 3","7011","Services - Supplies & Services to users","03/08/2017"
"Wolverhampton City Council","http://opendatacommunities.org/id/metropolitan-district-council/wolverhampton","Cross Country Trains","97.80","Education And Access","4112","Public Transport","02/08/2017"
"Wolverhampton City Council","http://opendatacommunities.org/id/metropolitan-district-council/wolverhampton","BRITANNIA","46.50","Adult Services - West","7011","Accommodation Costs","02/08/2017"
"Wolverhampton City Council","http://opendatacommunities.org/id/metropolitan-district-council/wolverhampton","WWW.DAVIESTIMBER.CO.UK","334.71","Michael Lyons","5211","Materials","02/08/2017"
"Wolverhampton City Council","http://opendatacommunities.org/id/metropolitan-district-council/wolverhampton","LOVE2SHOP.CO.UK","50.00","Healthy Start to Life","8641","Educ Trips, Holidays, Outings, Activity","02/08/2017"
"Wolverhampton City Council","http://opendatacommunities.org/id/metropolitan-district-council/wolverhampton","IKEA LIMITED","110.00","LAC Transitions Team","5712","Client Allowances","02/08/2017"
"Wolverhampton City Council","http://opendatacommunities.org/id/metropolitan-district-council/wolverhampton","CT WOLVERHAMPTON","265.00","LAC Transitions Team","8398","Client Allowances","02/08/2017"
"Wolverhampton City Council","http://opendatacommunities.org/id/metropolitan-district-council/wolverhampton","TVLICENSING.CO.UK","122.50","LAC Transitions Team","7392","Client Allowances","02/08/2017"
"Wolverhampton City Council","http://opendatacommunities.org/id/metropolitan-district-council/wolverhampton","WEST COAST TRAINS","12.00","Managing Director","7523","Subsistence","02/08/2017"
"Wolverhampton City Council","http://opendatacommunities.org/id/metropolitan-district-council/wolverhampton","AMZ Just Gloves","35.34","Central Baths","4816","Computing - Purchase of Software","02/08/2017"
"Wolverhampton City Council","http://opendatacommunities.org/id/metropolitan-district-council/wolverhampton","BANGA STORES 72855","10.50","Intensive Family Support Team","5411","Provisions (Not for resale)","02/08/2017"
"Wolverhampton City Council","http://opendatacommunities.org/id/metropolitan-district-council/wolverhampton","CT WOLVERHAMPTON","110.00","Intensive Family Support Team","8398","Services - Supplies & Services to users","02/08/2017"
"Wolverhampton City Council","http://opendatacommunities.org/id/metropolitan-district-council/wolverhampton","WWW.NISBETS.COM","65.72","Upper Pendeford Farm Childrens Home","5964","Equipment - Purchase","02/08/2017"
"Wolverhampton City Council","http://opendatacommunities.org/id/metropolitan-district-council/wolverhampton","REDWINGS LODGE","109.90","LAC Team","7011","Financial Assistance In Exceptional Circ","02/08/2017"
"Wolverhampton City Council","http://opendatacommunities.org/id/metropolitan-district-council/wolverhampton","Virgin Trains","59.00","LAC Team","4112","Public Transport","02/08/2017"
"Wolverhampton City Council","http://opendatacommunities.org/id/metropolitan-district-council/wolverhampton","CURRYS ONLINE","208.32","LAC Transitions Team","5732","Client Allowances","02/08/2017"
"Wolverhampton City Council","http://opendatacommunities.org/id/metropolitan-district-council/wolverhampton","WWW.WMCA.CO.UK","109.00","IMPACT","9399","Client Transport","02/08/2017"
"Wolverhampton City Council","http://opendatacommunities.org/id/metropolitan-district-council/wolverhampton","ARGOS RETAIL GROUP","153.96","EIP Locality 1","5310","Equipment - Purchase","02/08/2017"
"Wolverhampton City Council","http://opendatacommunities.org/id/metropolitan-district-council/wolverhampton","WEST MIDLANDS INFLATAB","45.90","Private Sector Housing","7999","Services - Professional Fees","02/08/2017"
"Wolverhampton City Council","http://opendatacommunities.org/id/metropolitan-district-council/wolverhampton","BARCLAYS BANK PLC","200.00","MASH","6011","Financial Assistance In Exceptional Circ","02/08/2017"
"Wolverhampton City Council","http://opendatacommunities.org/id/metropolitan-district-council/wolverhampton","SQUARESPACE INC.","150.89","Learning Technologies","7372","Computing - Purchase of Software","02/08/2017"
"Wolverhampton City Council","http://opendatacommunities.org/id/metropolitan-district-council/wolverhampton","ARGOS LTD","27.91","Global Budgets","5310","Stationery","02/08/2017"
"Wolverhampton City Council","http://opendatacommunities.org/id/metropolitan-district-council/wolverhampton","WWW.OAKLANDSWOLVERHAMP","55.00","CIN/CP Social Work Unit - Area 3","7011","No Recourse to Public Funds","02/08/2017"
"Wolverhampton City Council","http://opendatacommunities.org/id/metropolitan-district-council/wolverhampton","ASDA SUPERSTORE","82.00","CIN/CP Social Work Unit - Area 5","5411","No Recourse to Public Funds","02/08/2017"
"Wolverhampton City Council","http://opendatacommunities.org/id/metropolitan-district-council/wolverhampton","WM MORRISONS","10.89","Safeguarding and Quality - Adults","5411","Provisions (Not for resale)","02/08/2017"
"Wolverhampton City Council","http://opendatacommunities.org/id/metropolitan-district-council/wolverhampton","GOOGLE  SVCSAPPS_wolve","6.69","Civic Halls Non Direct Management A/C","5968","Subscriptions","02/08/2017"
"Wolverhampton City Council","http://opendatacommunities.org/id/metropolitan-district-council/wolverhampton","EB  RESILIENCE FILM SC","45.00","Headstart Phase 3","7399","Conference Expenses","02/08/2017"
"Wolverhampton City Council","http://opendatacommunities.org/id/metropolitan-district-council/wolverhampton","ASDA SUPERSTORE","12.36","B-Safe","5411","Cleaning Supplies and Materials","02/08/2017"
"Wolverhampton City Council","http://opendatacommunities.org/id/metropolitan-district-council/wolverhampton","WWW.REED.CO.UK","70.83","AES Staff Development","7361","Training Expenses","02/08/2017"
"Wolverhampton City Council","http://opendatacommunities.org/id/metropolitan-district-council/wolverhampton","ASDA HOME SHOPPING","-0.36","Upper Pendeford Farm Childrens Home","5411","Provisions (Not for resale)","02/08/2017"
"Wolverhampton City Council","http://opendatacommunities.org/id/metropolitan-district-council/wolverhampton","ASDA HOME SHOPPING","129.59","Upper Pendeford Farm Childrens Home","5411","Provisions (Not for resale)","02/08/2017"
"Wolverhampton City Council","http://opendatacommunities.org/id/metropolitan-district-council/wolverhampton","WM MORRISONS","-13.33","Play General","5411","Provisions (Not for resale)","01/08/2017"
"Wolverhampton City Council","http://opendatacommunities.org/id/metropolitan-district-council/wolverhampton","WM MORRISONS","19.42","Play General","5411","Provisions (Not for resale)","01/08/2017"
"Wolverhampton City Council","http://opendatacommunities.org/id/metropolitan-district-council/wolverhampton","W M MORRISON","36.25","Play General","5411","Provisions (Not for resale)","01/08/2017"
"Wolverhampton City Council","http://opendatacommunities.org/id/metropolitan-district-council/wolverhampton","AMAZON.CO.UK","54.12","Play General","5999","Equipment - Purchase","01/08/2017"
"Wolverhampton City Council","http://opendatacommunities.org/id/metropolitan-district-council/wolverhampton","G N GROSVENOR LTD","20.00","Play General","5983","Heating Oil","01/08/2017"
"Wolverhampton City Council","http://opendatacommunities.org/id/metropolitan-district-council/wolverhampton","POUNDWORLD RETAIL","15.00","Play General","5310","Equipment - Purchase","01/08/2017"
"Wolverhampton City Council","http://opendatacommunities.org/id/metropolitan-district-council/wolverhampton","PP THEWAY YZ","189.00","CIN/CP Social Work Unit - Area 5","8398","Section 17","01/08/2017"
"Wolverhampton City Council","http://opendatacommunities.org/id/metropolitan-district-council/wolverhampton","FACEBK 2CED5C6F92","104.83","Audience Development","7311","Marketing \ Non-staff advertising","01/08/2017"
"Wolverhampton City Council","http://opendatacommunities.org/id/metropolitan-district-council/wolverhampton","FACEBK ZBED5C6F92","147.93","Audience Development","7311","Marketing \ Non-staff advertising","01/08/2017"
"Wolverhampton City Council","http://opendatacommunities.org/id/metropolitan-district-council/wolverhampton","ARGOS DIRECT","84.92","CIN/CP Social Work Unit - Area 4","5310","No Recourse to Public Funds","01/08/2017"
"Wolverhampton City Council","http://opendatacommunities.org/id/metropolitan-district-council/wolverhampton","ARGOS DIRECT","89.12","CIN/CP Social Work Unit - Area 4","5310","Section 17","01/08/2017"
"Wolverhampton City Council","http://opendatacommunities.org/id/metropolitan-district-council/wolverhampton","Trainline","249.19","CIN/CP Social Work Unit - Area 7","4112","Section 17","01/08/2017"
"Wolverhampton City Council","http://opendatacommunities.org/id/metropolitan-district-council/wolverhampton","REGISTRARS OFFICE","27.00","Head of Service - CINCP","8299","Services - Professional Fees","01/08/2017"
"Wolverhampton City Council","http://opendatacommunities.org/id/metropolitan-district-council/wolverhampton","REGISTRARS OFFICE","20.00","Head of Service - CINCP","8299","Services - Professional Fees","01/08/2017"
"Wolverhampton City Council","http://opendatacommunities.org/id/metropolitan-district-council/wolverhampton","Virgin Trains","169.30","Adoption and Residence Team & Allowances","4112","Public Transport","01/08/2017"
"Wolverhampton City Council","http://opendatacommunities.org/id/metropolitan-district-council/wolverhampton","NOTEMACHINE","250.00","CIN/CP Social Work Unit - Area 6","6011","Financial Assistance In Exceptional Circ","01/08/2017"
"Wolverhampton City Council","http://opendatacommunities.org/id/metropolitan-district-council/wolverhampton","SCREWFIX DIRECT","49.99","Technician","5211","Materials","01/08/2017"
"Wolverhampton City Council","http://opendatacommunities.org/id/metropolitan-district-council/wolverhampton","ARGOS RETAIL GROUP","-39.99","Central Costs","5310","Equipment - Purchase","01/08/2017"
"Wolverhampton City Council","http://opendatacommunities.org/id/metropolitan-district-council/wolverhampton","ARGOS RETAIL GROUP","39.99","Central Costs","5310","Equipment - Purchase","01/08/2017"
"Wolverhampton City Council","http://opendatacommunities.org/id/metropolitan-district-council/wolverhampton","FACEBK AJPV8C2D22","60.64","Service Wide","7311","Marketing \ Non-staff advertising","01/08/2017"
"Wolverhampton City Council","http://opendatacommunities.org/id/metropolitan-district-council/wolverhampton","ARGOS RETAIL GROUP","239.99","EIP Locality 1","5310","Equipment - Purchase","01/08/2017"
"Wolverhampton City Council","http://opendatacommunities.org/id/metropolitan-district-council/wolverhampton","POST OFFICE COUNTER","44.20","Learning Disabilities Management","9402","Comms - Postage","01/08/2017"
"Wolverhampton City Council","http://opendatacommunities.org/id/metropolitan-district-council/wolverhampton","THE POST OFFICE","15.80","Supporting Local Artists","9402","Comms - Postage","01/08/2017"
"Wolverhampton City Council","http://opendatacommunities.org/id/metropolitan-district-council/wolverhampton","Amazon UK Marketplace","6.06","Global Budgets","5942","Books","01/08/2017"
"Wolverhampton City Council","http://opendatacommunities.org/id/metropolitan-district-council/wolverhampton","Amazon UK Marketplace","7.75","Global Budgets","5942","Books","01/08/2017"
"Wolverhampton City Council","http://opendatacommunities.org/id/metropolitan-district-council/wolverhampton","ASDA HOME SHOPPING","83.57","Ernest Bold Court","5411","Provisions (Not for resale)","01/08/2017"
"Wolverhampton City Council","http://opendatacommunities.org/id/metropolitan-district-council/wolverhampton","FACEBK HYBS2CJA82","19.53","Communications & Marketing - General","7311","Marketing \ Non-staff advertising","01/08/2017"
"Wolverhampton City Council","http://opendatacommunities.org/id/metropolitan-district-council/wolverhampton","FACEBK PHRTRDJAR2","74.80","Communications & Marketing - General","7311","Marketing \ Non-staff advertising","01/08/2017"
"Wolverhampton City Council","http://opendatacommunities.org/id/metropolitan-district-council/wolverhampton","FACEBK  292XXCAJC2","70.07","Headstart Phase 3","7311","Marketing \ Non-staff advertising","01/08/2017"
"Wolverhampton City Council","http://opendatacommunities.org/id/metropolitan-district-council/wolverhampton","ASDA SUPERSTORE","25.08","B-Safe","5411","Provisions (Not for resale)","01/08/2017"
"Wolverhampton City Council","http://opendatacommunities.org/id/metropolitan-district-council/wolverhampton","BLOOMS MENSWEAR","19.99","Mayoral Expenses","5611","Clothing / Uniforms","01/08/2017"
"Wolverhampton City Council","http://opendatacommunities.org/id/metropolitan-district-council/wolverhampton","SHELL & WAITROSE","4.17","Mayoral Expenses","5541","Cleaning Supplies and Materials","01/08/2017"
"Wolverhampton City Council","http://opendatacommunities.org/id/metropolitan-district-council/wolverhampton","WAITROSE 696","7.38","Mayoral Expenses","5411","Hospitality","01/08/2017"
"Wolverhampton City Council","http://opendatacommunities.org/id/metropolitan-district-council/wolverhampton","LOYD 37 CHURCH STREET","200.00","EIP Locality 8","6011","Grant Payments","01/08/2017"
"Wolverhampton City Council","http://opendatacommunities.org/id/metropolitan-district-council/wolverhampton","TVLICENSING.CO.UK","147.00","LAC Transitions Team","7392","Client Allowances","01/08/2017"
"Wolverhampton City Council","http://opendatacommunities.org/id/metropolitan-district-council/wolverhampton","Trainline","130.81","Youth Offending Team","4112","Public Transport","01/08/2017"
"Wolverhampton City Council","http://opendatacommunities.org/id/metropolitan-district-council/wolverhampton","ASDA HOME SHOPPING","84.53","EIP Locality 4","5411","Provisions (Not for resale)","01/08/2017"
"Wolverhampton City Council","http://opendatacommunities.org/id/metropolitan-district-council/wolverhampton","ARGOS LTD","133.32","LAC Transitions Team","5310","Client Allowances","01/08/2017"
"Wolverhampton City Council","http://opendatacommunities.org/id/metropolitan-district-council/wolverhampton","ARGOS LTD","191.65","LAC Transitions Team","5310","Client Allowances","01/08/2017"
"Wolverhampton City Council","http://opendatacommunities.org/id/metropolitan-district-council/wolverhampton","HUGHES","299.98","LAC Transitions Team","5732","Client Allowances","01/08/2017"
"Wolverhampton City Council","http://opendatacommunities.org/id/metropolitan-district-council/wolverhampton","Amazon Prime","-7.99","LAC Team","5968","Services - Fees and Charges","01/08/2017"
